{"text_format":"1","workbook":"xlsx","n_sheets":6,"sheets":["Daten","Bild","Daten_alt","Test","Basis","Daten_Orig"],"not_rendered":{"charts":0,"images":31,"macros":1,"external_links":0,"defined_names":6,"comments":3,"pivot_tables":0},"unopened":[],"bounds":{"document_bytes":16777216,"sheet_cells":100000,"rows_first":2000,"rows_last":500,"rows_between":2000,"halvings":0,"cell_chars":16384,"cell_head_chars":4096},"cells_cut":0,"cells_raw":0,"read":"whole","date_system":"1900"}

{"sheet":"Daten","index":0,"n_rows":208,"n_cols":33,"rows_kept":208,"cut":false,"hidden":false,"merged":[[2,31,3,31],[2,32,3,32],[2,14,2,18],[2,19,2,20],[2,25,2,27],[2,28,2,30],[2,21,2,22],[2,23,2,24],[1,0,1,1],[2,3,2,7],[2,11,2,13],[2,0,3,0],[2,1,3,1],[2,2,3,2],[2,10,3,10],[0,3,1,10],[0,0,0,1],[0,15,0,16],[0,11,0,13]]}
["Spalte sortieren",null,"Wechsel zu Seite","Buttons, Makros und  indiv. Programmierung unterstützen nur EXCEL-Funktionalität !",null,null,null,null,null,null,null,null,null,null,null,null,null,null,null,null,null,null,null,null,null,null,null,null,null,null,null,null,"Quelle auswählen"]
["Notiz dazu anzeigen",null,null,null,null,null,null,null,null,null,null,null,null,null,null,null,null,null,null,null,null,null,null,null,null,null,null,null,null,null,null,null,"Bundesarchiv Gedenkbuch"]
["LNr","Vorname","Name","Geburts-",null,null,null,null,"Verwandt-schafts-","mit","Erläuterung","Wohn-Adresse alt",null,null,"Wohn-Adresse neu",null,null,null,null,"verzogen",null,"geflohen",null,"abgemeldet",null,"Deportation",null,null,"Todesdatum",null,null,"Bemerkungen","Quelle"]
[null,null,null,"Name","Datum","Ort","Kreis","Land","Verhältnis","LNr Spalte A",null,"Wohnort","Straße","Haus-Nr.","PLZ","Wohnort","Kerngemeinde / Ortsteil","Straße","Haus-Nr.","X","Datum","X","Datum","X","Datum","ab","am","nach","Datum","gesi-chert","ver-mutet"]
["Bsp.","Hanna","Beispiel","Hess","1900-01-01","X-Dorf","Y-Kreis","Hessen-Naussau","Ehemann",6,"ABC","Höchst","Beispielstraße",3,64739,"Höchst","Hassenroth","Neue Beispielstraße",1,{"$f":"IF(U5=\"\",\"\",\"X\")","v":"X"},"1940-04-15",{"$f":"IF(W5=\"\",\"\",\"X\")","v":"X"},"1941-05-01",{"$f":"IF(Y5=\"\",\"\",\"X\")","v":"X"},"1941-12-31","Darmstadt","1942-09-30","Treblinka","1944-04-01"," ","X",null,"Bundesarchiv Gedenkbuch"]
[0,null,null,null,null,null,null,null,null,null,null,null,null,null,null,null,null,null,null,{"$f":"IF(U6=\"\",\"\",\"X\")","v":""},null,{"$f":"IF(W6=\"\",\"\",\"X\")","v":""},null,{"$f":"IF(Y6=\"\",\"\",\"X\")","v":""}]
[1,"Julius","Altheimer","Altheimer","09.01.1876","Bergen ","Kassel","Hessen","Ehemann",2,"geheiratet 29.10.1905",null,null,null,null,null,"New York ",null,null,null,null,null,null,null,"1941-05-24"]
[2,"Emma ","Altheimer","Krämer","26.06.1871","Höchst ","Odenwald","Hessen ","Ehefrau ",1,"geheiratet 29.10.1905","Höchst",null,null,null,null,"New York ",null,null,null,null,null,null,null,"1941-05-24",null,null,null,null,null,null,null,"Bundesarchiv Gedenkbuch"]
[3,"Herta","Altheimer","Edelmuth","1912-07-11","Höchst ","Odenwald","Hessen ","Ehefrau ",null,"East Sherman Avenue - Vineland - New Jersey","Höchst "]
[4,"Herberth ","Altheimer","Altheimer","1906-08-24","Höchst ","Odenwald","Hessen ",null,null,"USA","Höchst ",null,null,null,null,null,null,null,null,null,null,null,null,"1933-05-10"]
[5,"Sally","Flörsheimer","Kahn","1911-07-10","Höchst","Odenwald","Hessen","Tochter & Mutter ","6,7 & 8,9,10  ","USA",null,null,null,null,null,null,null,null,null,null,null,null,null,"1938-11-01"]
[6,"Hermann","Kahn","Kahn",null,null,null,null,"Vater & Ehemann","5 & 7","USA",null,null,null,null,null,null,null,null,null,null,null,null,null,"1938-11-01"]
[7,"Frieda","Kahn","Oppenheimer",null,null,null,null,"Mutter & Ehefrau ","5 & 6","USA",null,null,null,null,null,null,null,null,null,null,null,null,null,"1938-11-01"]
[8,"Frieda",null,"Flörsheimer","1928-11-23",null,null,null,"Tochter ",5,"USA",null,null,null,null,null,null,null,null,null,null,null,null,null,"1938-11-01"]
[9,"Joseph, Justin",null,"Flörsheimer","1930-01-01",null,null,null,"Sohn",5,"USA",null,null,null,null,null,null,null,null,null,null,null,null,null,"1938-11-01"]
[10,"Manfred",null,"Flörsheimer","1931-11-27",null,null,null,"Sohn",5,"USA",null,null,null,null,null,null,null,null,null,null,null,null,null,"1938-11-01"]
[11,"Adolf","Haas","Haas","17.03.1877",null,null,null,"Vater ",12,"USA","Höchst",null,null,null,null,"Frankfurt am Main",null,null,null,null,null,null,null,"1938-12-20",null,null,null,null,null,"X","In Israel begraben "]
[12,"Klara","Lomnitzer","Haas","1905-06-07",null,null,null,"Tochter & Ehefrau","11&13","11227 Brooklyn, Putman Ave 16/15",null,null,null,null,null,null,null,null,null,null,null,null,null,"1938-01-31"]
[13,"Herbert","Lomnitzer","Lomnitzer",null,null,null,null,"Ehemann",12,"11227 Brooklyn, Putman Ave 16/15",null,null,null,null,null,null,null,null,null,null,null,null,null,"1938-01-31"]
[14,"Julius","Haas","Haas","1907-01-13",null,null,null,"Sohn & Vater","11&16","Israel",null,null,null,null,null,null,null,null,null,null,null,null,null,"1905-04-16",null,null,null,null,null,"X","In Israel"]
[15,"Rosa, Ruth","Schilling","Haas","1913-02-12",null,null,null,"Tochter",11,"USA"]
[16,"Margrit","Haas","Haas","1923-07-03","Höchst","Odenwald","Hessen","Tochter",14,"USA","Michelstadt","Ostendstraße",25,null,null,null,null,null,null,null,null,null,null,"1938-12-20",null,null,null,null,null,null,null,"Bundesarchiv Gedenkbuch"]
[17,"Werner ","Haas","Haas","1926-04-01","Michelstadt","Odenwald","Hessen","Sohn",14,"USA","Michelstadt","Ostendstraße",25,null,null,null,null,null,null,null,null,null,null,"1938-12-20",null,null,null,null,null,null,null,"Internet Synagoge"]
[18,"Frieda",null,"Haas","1928-09-30",null,null,null,"Tochter",14,"USA",null,null,null,null,null,null,null,null,null,null,null,null,null,"1938-12-20"]
[19,"Karl","Herzfeld","Herzfeld","1913-10-30",null,null,null,"Ehemann",20,"46668 Gideon Hashofet, Herzlia-Pituach Israel",null,null,null,null,null,null,null,null,null,null,null,null,null,"1905-04-17"]
[20,"Elsa","Herzfeld","Frank","1910-02-17","Höchst ","Odenwald","Hessen","Ehefrau ",19,"2929 Franklin Road Nashville",null,null,null,null,null,null,null,null,null,null,null,null,null,"1937-04-05"]
[21,"Hugo","Kahn","Kahn","1920-02-13","Mümling-Grumbach","Odenwald","Hessen",null,null,"Nashville, Tennesee"]
[22,"Julius","Kahn","Kahn","1910-10-28","Höchst ","Odenwald","Hessen",null,null,"USA",null,null,null,null,null,null,null,null,null,null,null,null,null,"1936-09-27"]
[23,"Leo","Kahn","Kahn","1912-11-19",null,null,null,null,null,"720 West, 170th Street 32, New York City"]
[24,"Hugo","Kahn","Kahn","1913-09-23","Höchst ","Odenwald","Hessen",null,null,"Usa",null,null,null,null,null,null,null,null,null,null,null,null,null,"1936-09-27"]
[25,"Lilli",null,"Kahn","1916-10-01",null,null,null,null,null,"New York ",null,null,null,null," ",null,null,null,null,null,null,null,null,"1937-05-21"]
[29,"Hermann","Kahn","Kahn","05.05.1877",null,null,null,null,null,"New York ",null,null,null,null,null,null,null,null,null,null,null,null,null,"1938-06-27"]
[30,"Isaac II.","Kahn","Kahn","18.02.1880",null,null,null,"Ehemann",31,"New York ",null,null,null,null,null,null,null,null,null,null,null,null,null,"1934-11-26"]
[31,"Hannchen","Kahn","Rosenstock","11.03.1888",null,null,null,"Ehefrau",30,"New York ",null,null,null,null,null,null,null,null,null,null,null,null,null,"1934-11-26"]
[32,"Hermann","Kahn","Kahn","18.09.1878","Dörnigheim","Hanau","Hessen",null,null,"New York ",null,null,null,null,null,null,null,null,null,null,null,null,null,"1938-11-24"]
[33,"Regina (Rosa)","Flörsheimer","Kahn","1906-12-11","Höchst ","Odenwald","Hessen ","Ehemann",5,"New York ",null,null,null,null,null,null,null,null,null,null,null,null,null,"1938-11-01",null,null,null,null,null,null,null,"Bundesarchiv Gedenkbuch"]
[34,"Selma","Grünstein",null,"1908-08-07","Höchst ","Odenwald","Hessen",null,null,"1929 geheiratet und nach Miltenberg verzogen, von dort aus dann in die USA",null,null,null,null,null,null,null,null,null,null,null,null,null,"1929-12-21"]
[35,"Gertrud (Ruth)","Stern",null,"1911-11-21","Höchst ","Odenwald","Hessen",null,null,"wohnte zurZeit der Erstauflage des Buchs in New York (199-1424 Avenue Bayside L.J.) in zweiter Ehe verheiratet mit Recha Stern, Hochzeit 1927, 1938 nach Frankfurt, 1939 nach New York",null,null,null,null,null,null,null,null,null,null,null,null,null,"24.11.1938 nach Frankfurt, dann 1939 nach New York"]
[36,"Meier Max (Meinhold)","Stern","Stern","1928-02-23",null,null,null,"Sohn",null,"1938 nach Frankfurt, 1939 nach New York",null,null,null,null,null,null,null,null,null,null,null,null,null,"24.11.1938 nach Frankfurt, dann 1939 nach New York"]
[37,"Jeanette","Krämer","Blumenthal","07.01.1872","Höchst","Odenwald","Hessen","Ehefrau ",null,"USA","Höchst",null,null,null,null,null,null,null,null,null,null,null,null,"1937-08-02"]
[38,"Ludwig","Krämer","Krämer","22.10.1899","Höchst ","Odenwald","Hessen","Sohn ",null,"USA",null,null,null,null,null,null,null,null,null,null,null,null,null,"1937-08-02"]
[39,"Mai","Koppel","Koppel","18.03.1885","Höchst ","Odenwald","Hessen","Ehemann",null,"New York ",null,null,null,null,null,null,null,null,null,null,null,null,null,"1937-01-24"]
[40,"Regina","Koppel","Schott ","29.04.1865",null,null,null,"Ehefrau ",null,"New York ",null,null,null,null,null,null,null,null,null,null,null,null,null,"1937-01-24"]
[41,"Emma ","Reinheimer","Koppel","1988-12-06","Höchst ","Odenwald","Hessen","Tochter",null,"New York ",null,null,null,null,null,null,null,null,null,null,null,null,null,"1937-01-24"]
[42,"Jenny","Oppenheimer","Adler","18.08.1867","Kelsterbach","Groß-Gerau","Hessen","Ehefrau ",null,"New York ",null,null,null,null,null,null,null,null,null,null,null,null,null,"1937-11-15"]
[43,"Bartha","Oppenheimer","Oppenheimer","1906-09-14","Höchst ","Odenwald","Hessen","Sohn ",null,"New York ",null,null,null,null,null,null,null,null,null,null,null,null,null,"1934-02-13"]
[44,"Ernst","Oppenheimer","Oppenheimer","1910-05-11","Höchst ","Odenwald","Hessen","Sohn ",null,"New York ",null,null,null,null,null,null,null,null,null,null,null,null,null,"1936-04-25"]
[45,"Israel","Reinheimer","Reinheimer","29.06.1887","Beerfelden","Odenwald","Hessen","Ehemann",null,"Nashville TN USA",null,null,null,null,null,null,null,null,null,null,null,null,null,"1938-12-20"]
[46,"Sally","Reinheimer","Reinheimer","1921-01-04","Höchst ","Odenwald","Hessen","Tochter",null,"USA",null,null,null,null,null,null,null,null,null,null,null,null,null,"1937-06-15"]
[47,"Hedi","Reinheimer","Reinheimer","1930-06-09","Höchst ","Odenwald","Hessen","Tochter",null,"Nashville TN USA",null,null,null,null,null,null,null,null,null,null,null,null,null,"1938-12-20"]
[48,"Ludwig","Reinheimer","Reinheimer","1932-07-12","Höchst ","Odenwald","Hessen","Sohn ",null,"Naschville TN USA",null,null,null,null,null,null,null,null,null,null,null,null,null,"1938-12-20"]
[49,"Max","Reinheimer","Reinheimer","07.09.1891","Beerfelden","Odenwald","Hessen","Ehemann",null,"New York ",null,null,null,null,null,null,null,null,null,null,null,null,null,"1937-01-24"]
[50,"Siegfried","Reinheimer","Reinheimer","1922-11-16","Höchst ","Odenwald","Hessen","Sohn ",null,"New York ",null,null,null,null,null,null,null,null,null,null,null,null,null,"1937-01-24"]
[51,"Kurt","Reinheimer","Reinheimer","1926-11-16","Höchst ","Odenwald","Hessen","Sohn ",null,"New York ",null,null,null,null,null,null,null,null,null,null,null,null,null,"1937-01-24"]
[52,"Gieda","Grünebaum","Siegel","13.04.1867","Höchst ","Odenwald","Hessen ","Ehefrau ",null,"Holland",null,null,null,null,null,null,null,null,null,null,null,null,null,"1938-11-11",null,null,null,null,null,null,null,"Online Synagoge"]
[53,"Rosa","Siegel","Siegel","24.11.1890","Höchst ","Odenwald","Hessen",null,null,"Hilversum",null,null,null,null,null,null,null,null,null,null,null,null,null,"1939-01-06",null,null,null,null,null,null,null,"Online Synagoge"]
[54,"Martha","Flörsheimer",null,"1911-10-05","Höchst ","Odenwald","Hessen",null,null,"New York ",null,null,null,null,null,null,null,null,null,null,null,null,null,"1943-01-28"]
[55,"Sophie","Wetterhahn ","Herzfeld","19.11.1876","Höchst ","Odenwald","Hessen","Ehefrau & Tochter",null,"Geheiratet 2.8.1900 mit Kaufmann Wetterhahn Tochter von Erna Sachs New York ","Heidelberg",null,null,null,null,null,null,null,null,null,null,null,null,null,null,null,null,"1905-05-03",null,null,null,"Online Synagoge"]
[56,"Paula","Kahn",null,"1905-03-22",null,null,null,"Tochter",null,"Von Löser Kahn, Houston / Texas ",null,null,null,null,null,null,null,null,null,null,null,null,null,null,null,null,null,"1985-09-26"]
[57,"Fritz","Reinheimer",null,"1929-01-04","Höchst ","Odenwald","Hessen",null,null,"Nashville",null,null,null,null,null,null,null,null,null,null,null,null,null,"1937-06-15"]
[58,"Emma ","Reinheimer","Mai","6.12.1888","Höchst ","Odenwald","Hessen",null,null,"New York ",null,null,null,null,null,null,null,null,null,null,null,null,null,"1937-01-24",null,null,null,"1946-02-06"]
[59,"Gustav Isr","Flörsheimer","Flörsheimer","1909-06-06","Höchst ","Odenwald","Hessen",null,null,"Philadelphia ","Frankfurt am Main","Rückerstraße",57,null,"China",null,null,null,null,null,null,null,null,null,null,null,null,"1905-06-07",null,null,null,"Bundesarchiv Gedenkbuch"]
[60,"Heinrich ","Herzfeld","Herzfeld","16.12.1886","Höchst ","Odenwald","Hessen",null,null,null,null,null,null,null,null,"Frankfurt am Main (3.12.1935)",null,null,null,null,null,null,null,null,null,"1942-09-11","im Osten",null,"X",null,null,"Online Synagoge"]
[61,"Klara","Herzfeld","Meyer ","12.07.1889","Groß-Bieberach",null,null,null,null,null,"Höchst ",null,null,null,null,"Frankfurt am Main (3.12.1935)",null,null,null,null,null,null,null,null,null,null,null,"1942-09-25","X",null,null,"Bundesarchiv Gedenkbuch"]
[62,"Eva","Klumann","Herzfeld","22.6.1883",null,null,null,"Ehefrau & Tochter",null,"Leopold Klumann & Joseph Herzfeld","Höchst ",null,null,null,null,null,null,null,null,null,null,null,null,null,null,null,"Theresienstadt (mit Mann)","1944-12-23","X"]
[63,"Marx","Herzfeld",null,"30.11.1885",null,null,null,"Mutter ",null,"Elsa Frank, Nashville Tennesee",null,null,null,null,null,"Mainz",null,null,null,null,null,null,null,null,null,null,"Bergen-Belsen","1942-08-28","X"]
[64,"Moses","Kahn","Kahn","22.8.1894","Höchst ","Odenwald","Hessen",null,null,null,"Darmstadt",null,null,null,"Polen",null,null,null,null,null,null,null,null,null,null,null,null,"1954-12-31",null,"X",null,"Online Synagoge "]
[65,"Ida-Dora","Flörsheimer",null,"1905-02-24","Höchst ","Odenwald","Hessen","Ehefrau ",null,"Meier Flörsheimer",null,null,null,null,null,null,null,null,null,null,null,null,null,"1939-04-27",null,null,null,null,"X"]
[66,"Ruth ","Krämer ","Krämer","1934-10-29","Höchst ","Odenwald","Hessen ",null,null,null,null,null,null,null,null,null,null,null,null,null,null,null,null,null,null,"1942-09-24","Darmstadt dann Ausschwitz ",null,"X",null,null,"Online Synagoge"]
[67,"Ilse","Krämer ","Krämer","1936-01-27","Höchst ","Odenwald","Hessen",null,null,null,null,null,null,null,null,null,null,null,null,null,null,null,null,null,null,"1942-09-24","Ausschwitz ",null,"X",null,null,"Online Synagoge"]
[68,"Babette","Hirsch ","Hirsch","24.8.1867","Höchst ","Odenwald","Hessen",null,null,null,"Höchst","Hitlerstraße",13,null,null,null,null,null,null,null,null,null,null,null,null,"1942-09-24","Darmstadt dann Theresienstadt  ","1942-12-15","X",null,null,"Online Synagoge und Bundesarchiv Gedenkbuch"]
[69,"Jettchen ","Hirsch ","Hirsch","12.1.1874","Höchst ","Odenwald","Hessen",null,null,null,null,null,null,null,null,null,null,null,null,null,null,null,null,null,null,"1942-09-24","Darmstadt dann Theresienstadt  ","1943-01-03","X",null,null,"Online Synagoge und Bundesarchiv Gedenkbuch"]
[70,"Hannchen ","Löb ","Löb","8.3.1875","Höchst ","Odenwald","Hessen",null,null,null,null,null,null,null,null,null,null,null,null,null,null,null,null,null,null,"1942-09-24","Darmstadt dann Theresienstadt  ","1942-11-29","X",null,null,"Online Synagoge und Bundesarchiv Gedenkbuch"]
[71,"Paula","Löb ","Löb","16.6.1882","Höchst ","Odenwald","Hessen",null,null,null,null,null,null,null,null,null,null,null,null,null,null,null,null,null,null,"1942-09-24","Darmstadt dann Theresienstadt  ",null,"X",null,null,"Online Synagoge und Bundesarchiv Gedenkbuch"]
[72,"Berta","Löb ","Löb","26.9.1876","Höchst ","Odenwald","Hessen",null,null,null,null,null,null,null,null,null,null,null,null,null,null,null,null,null,null,"1942-09-24","Darmstadt dann Theresienstadt  ",null,"X",null,null,"Bundesarchiv Gedenkbuch"]
[73,"Sarah ","Krämer ","Krämer ","26.2.1876","Höchst ","Odenwald","Hessen","Tochter",null,"Lösermann Krämer II.","Höchst",null,null,null,null,null,null,null,null,null,null,null,null,null,null,null,null,"1942-10-14","X"]
[74,"Heinrich ","Oppenheimer","Oppenheimer","17.5.1876","Höchst ","Odenwald","Hessen","Sohn",null,"Marx Oppenheimer","Höchst",null,null,null,null,null,null,null,null,null,null,null,null,null,null,null,null,"1942-09-13","X"]
[75,"Jettchen ","Hamburger","Flörsheimer","12.7.1876","Höchst ","Odenwald","Hessen","Tochter ",null,"Isaak Flörsheimer","Höchst",null,null,null,null,null,null,null,null,null,null,null,null,null,null,null,"Theresienstadt","1944-02-02","X"]
[76,"Ernst","Herzfeld","Ernst","1921-10-17","Höchst ","Odenwald","Hessen",null,null,null,"Höchst",null,null,null,"Wiesbaden",null,null,null,"X",13121,null,null,null,null,null,null,"Maydanek","1942-07-27","X",null,null,"Bundesarchiv Gedenkbuch und Online Synagoge"]
[77,"Mathilde","Mai","Mai","1901-03-20","Höchst ","Odenwald","Hessen",null,null,null,"Höchst",null,null,null,null,null,null,null,null,null,null,null,null,null,null,"1942-04-28","im Osten",null,"X",null,null,"Online Synagoge"]
[78,"Abraham","Mai","Mai","5.4.1858","Höchst ","Odenwald","Hessen","Ehemann",null,null,"Höchst",null,null,null,null,null,null,null,null,null,null,null,null,null,"Darmstadt","1942-04-28","Theresienstadt (mit Frau) ","1943-04-11","X",null,null,"Online Synagoge und Bundesarchiv Gedenkbuch"]
[79,"Ferdinand","Muhr","Muhr","14.11.1871","Höchst ","Odenwald","Hessen","Sohn",null,"Joel Muhr","Höchst",null,null,null,"Köln",null,null,null,"X",null,null,null,null,null,"Wiesbaden",null,"Theresienstadt","1942-06-26","X",null,null,"Online Synagoge"]
[80,"Abraham","Muhr","Muhr","3.8.1865","Höchst ","Odenwald","Hessen","Sohn",null,"Joel Muhr","Höchst",null,null,null,"Frankfurt am Main",null,null,null,"X",null,null,null,null,null,"Wiesbaden",null,"Theresienstadt","1942-08-27","X"]
[81,"Fanny","Muhr","Muhr","17.2.1869","Höchst ","Odenwald","Hessen","Tochter",null,"Joel Muhr","Höchst",null,null,null,"Darmstadt",null,null,null,"X",null,null,null,null,null,"Wiesbaden",null,"Theresienstadt","1942-12-14","X",null,null,"Online Synagoge und Bundesarchiv Gedenkbuch"]
[82,"Leopold","Krämer","Krämer","8.12.1884","Höchst ","Odenwald","Hessen",null,null,null,"Höchst",null,null,null,null,null,null,null,null,null,null,null,null,null,null,null,null,"1942-07-12","X",null,"In Frankfurt am Main auf dem Weg in ein KZ verstorben","Bundesarchiv Gedenkbuch"]
[83,"Dora","Krämer","Hess","15.3.1896","Birstein","Main-Kinzig ","Hessen",null,null,null,"Höchst",null,null,null,null,null,null,null,null,null,null,null,null,null,null,"1942-09-24","Darmstadt dann Ausschwitz ",null,"X",null,null,"Online Synagoge "]
[84,"Eva","Krämer","Krämer","1928-12-15","Höchst ","Odenwald","Hessen",null,null,null,"Höchst",null,null,null,null,null,null,null,null,null,null,null,null,null,null,"1942-09-24","Darmstadt dann Ausschwitz ",null,"X",null,null,"Online Synagoge "]
[85,"Betty","Krämer","Krämer","1932-11-01","Höchst ","Odenwald","Hessen",null,null,null,"Höchst",null,null,null,null,null,null,null,null,null,null,null,null,null,null,"1942-09-24","Darmstadt dann Ausschwitz ",null,"X",null,null,"Online Synagoge"]
[86,"Emil","Kahn",null,"15.12.1887",null,null,null,null,null,null,"Mümling-Grumbach",null,null,null,null,null,null,null,null,null,null,null,null,null,null,"1942-04-28","im Osten",null,"X",null,null,"Bundesarchiv Gedenkbuch"]
[87,"Rosa","Kahn","Fink","18.09.1894",null,null,null,null,null,null,"Mümling-Grumbach",null,null,null,null,null,null,null,null,null,null,null,null,null,null,"1942-04-28","im Osten",null,"X"]
[88,"Julius","Kahn",null,"1932-04-17",null,null,null,null,null,null,"Mümling-Grumbach",null,null,null,null,null,null,null,null,null,null,null,null,null,null,"1942-04-28","im Osten",null,"X"]
[89,"Hermann","Kahn",null,"05.11.1880",null,null,null,null,null,null,"Mümling-Grumbach",null,null,null,null,null,null,null,null,null,null,null,null,null,null,"1942-04-28","im Osten",null,"X"]
[90,"Sophie","Kahn","Guttmann","01.03.1882",null,null,null,null,null,null,"Mümling-Grumbach",null,null,null,null,null,null,null,null,null,null,null,null,null,null,"1942-04-28","im Osten",null,"X"]
[91,"Gutta","Kahn",null,"1916-03-18",null,null,null,null,null,null,"Mümling-Grumbach",null,null,null,null,null,null,null,null,null,null,null,null,null,null,"1942-04-28","im Osten",null,"X",null,null,"Bundesarchiv Gedenkbuch"]
[92,"Manfred","Kahn",null,"1918-11-20",null,null,null,null,null,null,"Mümling-Grumbach",null,null,null,"Allanzberg","Kr.Potsdam",null,null,null,null,null,null,null,null,null,null,"Birkenau",null,"X",null,null,"Bundesarchiv Gedenkbuch"]
[93,"Karoline ","Kahn",null,"23.10.1870",null,null,null,null,null,null,"Hetschbach",null,null,null,"Darmstadt",null,null,null,null,null,null,null,null,null,null,null,"Theresienstadt","1943-01-13","X"]
[94,"Rosa","Strauss","Rapp","26.06.1879",null,null,null,null,null,null,"Hetschbach",null,null,null,"Frankfurt am Main/ nachher Niederlande ",null,null,null,null,null,null,null,null,null,null,null,"im Osten","1945-12-31","X",null,null,"Online Synagoge"]
[95,"Hermann","Neu",null,"10.06.1891",null,null,null,null,null,null,"Hetschbach",null,null,null,null,null,null,null,null,null,null,null,null,null,null,"1942-04-28",null,null,"X"]
[96,"Herbert","Altheimer",null,"1906-08-24","Höchst ","Odenwald","Hessen",null,null,null,null,null,null,null,null,null,null,null,null,null,null,null,"X","1933-05-10",null,null,null,"1905-06-05","X",null,"emigrierte nach New York(USA), dort verstorben"]
[97,"Maier","Flörsheimer",null,"23.02.1874","Höchst ","Odenwald","Hessen","Sohn",null,"Isaak Flörsheim     Malchen geb. Trier",null,null,null,null,null,null,null,null,null,null,null,null,null,null,null,null,null,null,null,null,"Verbleib unbekannt"]
[98,"Arthur","Flörsheimer",null,"1905-03-03","Höchst ","Odenwald","Hessen",null,null,null,null,null,null,null,null,null,null,null,null,null,null,null,"X","1938-10-25",null,null,null,null,"X",null,"emigrierte nach New York(USA), dort verstorben","Bundesarchiv Gedenkbuch"]
[99,"Mina","Flörsheimer",null,"1905-02-10",null,null,null,null,null,null,null,null,null,null,null,null,null,null,null,null,null,null,"X","1938-10-25",null,null,null,null,null,null,"Verbleib unbekannt"]
[100,"Hadwig?","Flörsheimer",null,"26.02.1894",null,null,null,null,null,null,null,null,null,null,null,null,null,null,null,null,null,null,"X","1938-10-25",null,null,null,null,"X",null,"emigrierte nach New York(USA), dort verstorben"]
[101,"Heinrich Israel","Flörsheimer",null,"1910-08-27","Höchst ","Erbach","Hessen",null,null,null,"Frankfurt am Main","Gemisstraße",20,null,"New York",null,null,null,null,null,null,null,"X","1938-10-25",null,null,null,"1965-11-19","X",null,"emigrierte nach New York(USA), dort verstorben","Bundesarchiv Gedenkbuch"]
[102,"Else","Sternheimer",null,"1902-02-26",null,null,null,null,null,null,null,null,null,null,null,null,null,null,null,null,null,null,"X","1905-04-16",null,null,null,null,null,null,"Verbleib unbekannt"]
[103,"Ferdinand","David",null,"1905-03-17",null,null,null,null,null,null,null,null,null,null,null,null,null,null,null,null,null,null,"X","1934-03-29",null,null,null,null,null,null,"Verbleib unbekannt"]
[104,"Meti","Holländer",null,"1905-03-29",null,null,null,null,null,null,null,null,null,null,null,null,null,null,null,null,null,null,"X","1934-06-01",null,null,null,null,null,null,"Verbleib unbekannt"]
[105,"Irene","Oppenheimer",null,null,null,null,null,null,null,null,null,null,null,null,null,null,null,null,null,null,null,null,"X","1934-11-20",null,null,null,null,null,null,"Verbleib unbekannt"]
[106,"Manfred","Levi",null,"1905-07-18",null,null,null,null,null,null,null,null,null,null,null,null,null,null,null,null,null,null,"X",null,null,null,null,null,null,null,"Verbleib unbekannt"]
[107,"Margot","Meyer",null,"1918-04-10",null,null,null,null,null,null,null,null,null,null,null,null,null,null,null,null,null,null,"X","1905-04-18",null,null,null,null,null,null,"Verbleib unbekannt"]
[108,"Hertha","Meyer",null,"1913-07-17",null,null,null,null,null,null,null,null,null,null,null,null,null,null,null,null,null,null,"X","1905-04-20",null,null,null,null,null,null,"Verbleib unbekannt"]
[109,"David","Kahn",null,"23.07.1883","Hetschbach","Odenwald","Hessen",null,null,null,null,null,null,null,null,null,null,null,null,null,null,null,"X","1934-11-06",null,null,null,"1943-08-19",null,"X","Zugezogen nach Höchst am 20.04.1937, Herkunft unbekannt, Verbleib unbekannt","Bundesarchiv Gedenkbuch"]
[110,"Marx","Kahn",null,"1924-05-10","Seeheim",null,null,null,null,null,null,null,null,null,null,null,null,null,null,null,null,null,null,null,null,null,null,null,null,null,"Verbleib unbekannt"]
[111,"Samuel","Grünebaum",null,"04.04.1875","Hofstetten","Miltenberg","Bayern","Ehemann",null,"Gieda geb.Siegel ","Höchst",null,null,null,"Niederlande",null,null,null,null,null,null,null,null,null,null,null,null,null,null,null,null,"Online Synagoge"]
[112,"Isidor","Grünebaum",null,"1904-04-05",null,null,null,null,null,null,null,null,null,null,null,null,null,null,null,null,null,null,null,null,null,null,null,"1905-05-05","X",null,"verstarb in New York(USA)"]
[113,"Therese","Grünebaum",null,"1906-07-27","Höchst","Odenwald","Hessen",null,null,null,null,null,null,null,null,null,null,null,null,null,null,null,null,null,null,null,null,"1976-04-15","X",null,"verstarb in New York(USA)"]
[114,"Julius Israel","Grünebaum",null,"1902-05-10","Höchst","Odenwald","Hessen",null,null,null,"Höchst",null,null,null,"Niederlande",null,null,null,null,null,null,null,"X","1933-07-25",null,null,null,null,"X",null,"starb zusammen mit seiner Frau im KZ","Online Synagoge"]
[115,"Leopold","Haas",null,"06.06.1884","Neustadt","Odenwald","Hessen",null,null,null,"Michelstadt",null,null,null,"Höchst",null,null,null,null,null,null,null,"X","1938-12-15",null,null,null,null,null,null,"genannt \"Geilsjesel\", Pferdehändler, Verbleib unbekannt"]
[116,"Isabellaa","Haas","Strauß","27.02.1897",null,null,null,null,null,null,null,null,null,null,null,null,null,null,null,null,null,null,"X","1938-12-20",null,null,null,null,null,null,"Verbleib unbekannt"]
[117,"Alfred Günther","Haas",null,"1928-09-30","Höchst","Odenwald","Hessen",null,null,null,"Frankfurt am Main",null,null,null,"Minsk/Weißrussland",null,null,null,null,null,null,null,"X","1938-12-20",null,null,null,null,null,null,"Verbleib unbekannt","Online Synagoge und Bundesarchiv Gedenkbuch"]
[118,"Meta","Haas",null,"1911-08-13",null,null,null,null,null,null,null,null,null,null,null,null,null,null,null,null,null,null,"X","1938-12-15",null,null,null,null,null,null,"Verbleib unbekannt","Bundesarchiv Gedenkbuch"]
[119,"Isidor","Haas",null,"24.06.1895",null,null,null,"Bruder",null,"Leopold Haas","Frankfurt am Main","Ostendstraße",25,null,"Nach New York ausgewandert",null,null,null,null,null,null,null,"X","1938-12-20",null,null,null,null,"X",null,"verstarb in New York(USA)","Bundesarchiv Gedenkbuch"]
[120,"Julius Yuz","Haas",null,"25.10.1899","Neustadt","Marburg-Biedenkopf","Hessen","Bruder",null,"Leopold Haas","Neustadt",null,null,null,"Höchst",null,null,null,null,null,null,null,"X","1938-12-20",null,null,null,null,null,null,"Verbleib unbekannt","Online Synagoge"]
[121,"Marx","Haas",null,"1903-03-23","nicht in Höchst",null,null,null,null,null,null,null,null,null,null,null,null,null,null,null,null,null,"X","1905-04-18",null,null,null,null,null,null,"Verbleib unbekannt"]
[122,"Sophie","Wetterhahn ","Herzfeld","19.11.1876","Höchst","Odenwald","Hessen","Ehemann",null,"heirate Kaufmann Wetterhahn am 02.08.1900 in Weinheim","Heidelberg",null,null,null,"Gurs/Frankreich",null,null,null,null,null,null,null,null,null,null,null,null,"1905-05-03",null,null,"Verstorben im New York im Haushalt ihrer Tochter Erna Sachs","Online Synagoge "]
[123,"Jettche","Herzfeld",null,"20.04.1870","Höchst","Odenwald","Hessen","Ehemann",null,"verheiratet mit David Sternheimer am 12.07.1896 nach Viernheim ",null,null,null,null,null,null,null,null,null,null,null,null,null,null,null,null,null,null,null,null,"Verbleib unbekannt"]
[124,"Bertha","Haas",null,"1911-04-24",null,null,null,"Ehemann",null,"mit Rabbiner Max Koppel in New York verheiratet",null,null,null,null,null,null,null,null,null,null,null,null,null,null,null,null,null,null,null,null,"verstorben"]
[125,"Kurt","Haas",null,"1912-05-26",null,null,null,null,null,null,null,null,null,null,null,null,null,null,null,null,null,null,null,null,null,null,null,null,null,null,"in Emigration gestorben"]
[126,"Leo","Haas",null,"1913-12-12",null,null,null,null,null,null,null,null,null,null,null,null,null,null,null,null,null,null,null,null,null,null,null,null,null,null,"verstorben in Asucion; Paraguay"]
[127,"Walter","Haas",null,"1915-08-26",null,null,null,null,null,null,null,null,null,null,null,null,null,null,null,null,null,null,null,null,null,null,null,null,null,null,"verstorben in Amerika"]
[128,"Ernst","Haas",null,"1918-06-05",null,null,null,null,null,null,null,null,null,null,null,null,null,null,null,null,null,null,null,null,null,null,null,null,null,null,"z.Zt. Wohnhaft in Argentinien"]
[129,"Rosi","Rein ","Haas","1920-02-11",null,null,null,null,null,null,null,null,null,null,null,null,null,null,null,null,null,null,null,null,null,null,null,null,null,null,"wohnt in Paraguay"]
[130,"Willi","Haas",null,"1922-02-22",null,null,null,null,null,null,null,null,null,null,null,null,null,null,null,null,null,null,null,null,null,null,null,null,null,null,"lebte in Argentinien, verstarb in den USA"]
[131,"Bernhard","Herzfeld",null,"23.03.1866","Höchst","Odenwald","Hessen","Ehefrau",null,"verheiratet anch Weiterstadt am 1897 mit Elisa geb. Lehmann",null,null,null,null,null,null,null,null,null,null,null,null,null,null,null,null,null,null,null,null,"Verbleib unbekannt"]
[132,"Maier Israel","Herzfeld","Herzfeld ","07.05.1864","Höchst","Odenwald","Hessen",null,null,null,null,null,null,null,"Aschaffenburg",null,"Weberegasse",2,null,null,null,null,null,null,null,null,null,"1942-02-05","X",null,"Verbleib unbekannt","Online Synagoge und Bundesarchiv Gedenkbuch"]
[133,"Johanna ","Levi","Herzfeld","19.12.1890","Höchst","Odenwald","Hessen","Ehemann",null,"verheiratet mit Kaufmann Joseph Levi nach Mittelsinn am 11.08.1920",null,null,null,null,"Aschaffenburg",null,null,null,null,null,null,null,null,null,null,null,null,null,null,null,"Verbleib unbekannt","Online Synagoge und Bundesarchiv Gedenkbuch"]
[134,"Mathilde","Lichtenstein","Herzfeld","09.06.1893","Höchst","Odenwald","Hessen",null,null,null,"Höchst",null,null,null,"Aschaffenburg",null,null,null,null,null,null,null,null,null,null,null,null,null,null,null,"Verbleib unbekannt","Bundesarchiv Gedenkbuch und Online Synagoge"]
[135,"Wilhelmine","Herzfeld",null,"1902-05-13","Höchst","Odenwald","Hessen",null,null,"verheiratet nach Esslingen 1938",null,null,null,null,null,null,null,null,null,null,null,null,null,null,null,null,null,null,null,null,"lebte in Philadelphia; USA"]
[136,"Elsa","Herzfeld",null,"1903-12-08","Höchst","Odenwald","Hessen ",null,null,null,null,null,null,null,null,null,null,null,null,null,null,null,null,null,null,null,null,null,null,null,"lebte in Philadelphia; USA"]
[137,"Moritz","Herzfeld",null,"01.09.1877","Höchst","Odenwald","Hessen ",null,null,null,null,null,null,null,null,null,null,null,null,null,null,null,null,null,null,null,null,null,null,null,"Verbleib unbekannt"]
[138,"Sigmund","Herzfeld",null,"02.09.1879","Höchst","Odenwald","Hessen",null,null,null,null,null,null,null,null,null,null,null,null,null,null,null,null,null,null,null,null,null,null,null,"Verbleib unbekannt"]
[139,"Elsa","Herzfeld",null,"03.02.1882","Höchst","Odenwald","Hessen","Schwester",140,"Frieda Herzfeld (Zwillinge)",null,null,null,null,null,null,null,null,null,null,null,null,null,null,null,null,null,null,null,null,"Verbleib unbekannt"]
[140,"Frieda","Herzfeld",null,"03.02.1882","Höchst","Odenwald","Hessen","Schwester",139,"Elsa Herzfeld (Zwillinge)",null,null,null,null,null,null,null,null,null,null,null,null,null,null,null,null,null,null,null,null,"Verbleib unbekannt"]
[141,"Güdele","Hirsch ",null,"27.08.1870","Höchst","Odenwald","Hessen",null,null,null,null,null,null,null,null,null,null,null,null,null,null,null,null,null,null,null,null,null,null,null,"Verbleib unbekannt"]
[142,"Helmut","Kahn","Kahn","1920-02-13","Mümling-Grumbach","Odenwald","Hessen",null,null,null,null,null,null,null,null,null,null,null,"X",13610,null,null,null,null,null,null,null,null,null,null,"nach Frankfurt a. M. verzogen; Verbleib unbekannt","Bundesarchiv Gedenkbuch"]
[143,"Hermann","Kahn",null,"1906-12-29",null,null,null,null,null,null,null,null,null,null,null,null,null,null,null,null,null,null,null,null,null,null,null,"1963-04-07",null,null,"starb in Hot Springs; Arkansas; USA"]
[144,"Marx","Kahn",null,"1912-12-14",null,null,null,null,null,null,null,null,null,null,null,null,null,null,null,null,null,null,null,null,null,null,null,"1977-10-03",null,null,"starb in New York; USA"]
[145,"Flora","Kahn",null,"04.03.1898","Höchst","Odenwald","Hessen",null,null,null,null,null,null,null,null,null,null,null,"X",8993,null,null,null,null,null,null,null,null,null,null,"nach Groß-Biberau verzogen; starb in New York"]
[146,"Siegfried","Kahn",null,"1913-04-01","Höchst","Odenwald","Hessen",null,null,null,null,null,null,null,null,null,null,null,null,null,null,null,null,null,null,null,null,null,null,null,"Als US-Soldat war er 1945 in Höchst, verstarb während der Rückreise auf dem Schiff"]
[147,"Dina","Kahn",null,"17.05.1883","Höchst","Odenwald","Hessen",null,null,"nach Schlierbach verheiratet",null,null,null,null,null,null,null,null,"X",null,null,null,null,null,null,null,null,null,null,null,"starb in New York; USA"]
[148,"Klara ","Wolf","Kahn","19.11.1885","Höchst","Odenwald","Hessen","Ehemann",null,"verheiratet mit Glasmeister Adolf Wolf; Witwer (jüd.)","Bingen","Schmittstraße",66,null,null,null,null,null,null,null,null,null,null,null,null,null,null,null,null,null,"Verbleib unbekannt","Online Synagoge "]
[149,"Hannchen","Kahn",null,"08.03.1878","Hetschbach","Odenwald","Hessen","Ehemann",null,"verheiratet mit Sigmund Rosenthal am 22.05.1904 nach Langenhain",null,null,null,null,null,null,null,null,null,null,null,null,null,null,null,null,null,null,null,null,"Verbleib unbekannt"]
[150,"Rosa","Kahn",null,"07.02.1888","Hetschbach","Odenwald","Hessen","Ehemann",null,"am 20.12.1904 mit dem Bäcker Sachy Steiermannn nach Biblis verheiratet",null,null,null,null,null,null,null,null,null,null,null,null,null,null,null,null,null,null,null,null,"Verbleib unbekannt"]
[151,"Hermann","Kahn",null,"03.08.1892","Höchst","Odenwald","Hessen",null,null,"verheiratet nach Groß-Umstadt",null,null,null,null,null,null,null,null,null,null,null,null,null,null,null,null,null,null,null,null,"Emigration nach Palästina; Religionslehrer in Jerusalem; verstorben"]
[152,"Faist","Krämer",null,"02.06.1865","Höchst","Odenwald","Hessen",null,null,null,null,null,null,null,null,null,null,null,null,null,null,null,null,null,null,null,null,null,null,null,"Emigration in die USA"]
[153,"Marx","Krämer",null,"12.08.1867","Höchst","Odenwald","Hessen",null,null,null,null,null,null,null,null,null,null,null,null,null,null,null,null,null,null,null,null,null,null,null,"Emigration in die USA"]
[154,"Walther","Krämer",null,"1901-02-11","Höchst","Odenwald","Hessen",null,null,null,null,null,null,null,null,null,null,null,null,null,null,null,null,null,null,null,null,"1982-09-01",null,null,"verstarb in den USA"]
[155,"Herbert","Krämer",null,"1904-03-07","Höchst","Odenwald","Hessen",null,null,null,null,null,null,null,null,null,null,null,null,null,null,null,"X","1933-05-10",null,null,null,"1905-05-15",null,null,"nach Düsseldorf abgemeldet; Verstarb in den USA"]
[156,"Friedrich","Krämer",null,"1911-06-28","Höchst","Odenwald","Hessen",null,null,null,null,null,null,null,null,null,null,null,null,null,null,null,"X","1934-09-29",null,null,null,"1905-06-08",null,null,"in die USA abgemeldet, verstarb in New Jersey"]
[157,"Elisa","Krämer",null,"05.07.1872","Höchst","Odenwald","Hessen",null,null,null,null,null,null,null,null,null,null,null,null,null,null,null,null,null,null,null,null,null,null,null,"Verbleib unbekannt"]
[158,"Karoline ","Krämer",null,"14.07.1874","Höchst","Odenwald","Hessen",null,null,null,null,null,null,null,null,null,null,null,null,null,null,null,null,null,null,null,null,null,null,null,"Verbleib unbekannt"]
[159,"Helene","Krämer",null,"01.07.1881","Höchst","Odenwald","Hessen",null,null,null,"Höchst ",null,null,null,"Offenbach am Main",null,null,null,null,null,null,null,null,null,null,null,null,"1905-06-09",null,null,"verstarb in New York; USA","Bundesarchiv Gedenkbuch"]
[160,"Malche","Krämer",null,"03.04.1879","Höchst","Odenwald","Hessen",null,null,null,null,null,null,null,null,null,null,null,null,null,null,null,null,null,null,null,null,null,null,null,"in die USA ausgewandert"]
[161,"Marx","Löb ",null,"21.03.1874","Höchst","Odenwald","Hessen"]
[162,"Salomon","Löb ",null,"15.04.1880","Höchst","Odenwald","Hessen "]
[163,"Hermine","Mai",null,"17.12.1890","Höchst","Odenwald","Hessen",null,null,null,null,null,null,null,null,null,null,null,null,null,null,null,null,null,null,null,null,null,null,null,"in die USA ausgewandert"]
[164,"Moritz","Mai",null,"11.01.1885","Höchst","Odenwald","Hessen",null,null,null,null,null,null,null,null,null,null,null,null,null,null,null,null,null,null,null,null,null,null,null,"Verbleib unbekannt "]
[165,"Fanni","Mai",null,"29.01.1867","Höchst","Odenwald","Hessen ",null,null,null,null,null,null,null,null,null,null,null,null,null,null,null,null,null,null,null,null,null,null,null,"Verbleib unbekannt "]
[166,"Isaak","Mai",null,"05.10.1869","Höchst","Odenwald","Hessen",null,null,null,null,null,null,null,null,null,null,null,null,null,null,null,null,null,null,null,null,null,null,null,"Verbleib unbekannt "]
[167,"Hirsch","Mai",null,"28.12.1871","Höchst","Odenwald","Hessen",null,null,null,null,null,null,null,null,null,null,null,null,null,null,null,null,null,null,null,null,null,null,null,"Verbleib unbekannt "]
[168,"Moses","Mai",null,"05.01.1874","Höchst","Odenwald","Hessen",null,null,null,null,null,null,null,null,null,null,null,null,null,null,null,null,null,null,null,null,null,null,null,"nach Nashville emigriert und dort verstorben "]
[169,"Regina","Mai",null,"20.10.1877","Höchst ","Odenwald","Hessen",null,null,null,null,null,null,null,null,null,null,null,null,null,null,null,null,null,null,null,null,null,null,null,"Verbleib unbekannt "]
[170,"Eva","Strauss","Morgenthau","17.12.1873","Höchst","Odenwald","Hessen","Ehefrau",null,"Mit Metzger Raphael Straus am 29.05.1904","Frankfurt am Main",null,null,null,null,null,null,null,null,null,null,null,null,null,null,null,null,null,null,null,"nach Hörstein/Alzenau, Verbleib unbekannt","Bundesarchiv Gedenkbuch und Online Synagoge"]
[171,"Mayer","Morgenthau",null,"12.11.1878","Höchst","Odenwald","Hessen",null,null,null,null,null,null,null,null,null,null,null,null,null,null,null,null,null,null,null,null,null,null,null,"Verbleib unbekannt "]
[172,"Bina","Muhr",null,"03.04.1886","Höchst","Odenwald","Hessen",null,null,null,null,null,null,null,null,null,null,null,null,null,null,null,null,null,null,null,null,null,null,null,"Verbleib unbekannt "]
[173,"Hedwig Sara","Muhr",null,"04.11.1887","Höchst","Odenwald","Hessen",null,null,null,"Frankfurt am Main",null,null,null,null,null,null,null,null,null,null,null,null,"1938-11-24",null,null,"Frankfurt am Main",null,null,null,"Verbleib unbekannt ","Bundesarchiv Gedenkbuch"]
[174,"Jettchen ","Muhr",null,"17.11.1859","Höchst","Odenwald","Hessen",null,null,null,null,null,null,null,null,null,null,null,null,null,null,null,null,null,null,null,null,null,null,null,"Verbleib unbekannt "]
[175,"Gustav ","Muhr",null,"03.03.1859","Höchst","Odenwald","Hessen",null,null,null,null,null,null,null,null,null,null,null,null,null,null,null,null,null,null,null,null,null,null,null,"Verbleib unbekannt "]
[176,"Leopold","Oppenheimer",null,"18.03.1867","Höchst ","Odenwald","Hessen",null,null,null,null,null,null,null,null,null,null,null,null,null,null,null,null,null,null,null,null,null,null,null,"Verbleib unbekannt "]
[177,"Adelheid","Oppenheimer",null,"28.07.1869","Höchst","Odenwald","Hessen",null,null,null,null,null,null,null,null,null,null,null,null,null,null,null,null,null,null,null,null,null,null,null,"Verbleib unbekannt "]
[178,"Trinche","Oppenheimer",null,"24.04.1871","Höchst","Odenwald","Hessen",null,null,null,null,null,null,null,null,null,null,null,null,null,null,null,null,null,null,null,null,null,null,null,"Verbleib unbekannt "]
[179,"Ludwig","Oppenheimer",null,"01.04.1872","Höchst","Odenwald","Hessen",null,null,null,null,null,null,null,null,null,null,null,null,null,null,null,null,null,null,null,null,null,null,null,"Emigriert in die USA "]
[180,"Mathilde","Liebmann","Oppenheimer","05.05.1875","Höchst","Odenwald","Hessen","Ehefrau",null,"verh. mit Fellhändler Salomon Liebmann","Höchst",null,null,null,"Aschaffenburg",null,"Friedrichstraße",7,null,null,null,null,null,null,null,null,null,null,null,null,"Verbleib unbekannt ","Bundesarchiv Gedenkbuch"]
[181,"Malche","Oppenheimer",null,"28.08.1878","Höchst","Odenwald","Hessen",null,null,null,null,null,null,null,null,null,null,null,null,null,null,null,null,null,null,null,null,null,null,null,"Verbleib unbekannt "]
[182,"Leopold","Oppenheimer",null,"02.03.1869","Höchst","Odenwald","Hessen",null,null,null,null,null,null,null,null,null,null,null,null,null,null,null,null,null,null,null,null,null,null,null,"Verbleib unbekannt "]
[183,"Marx","Oppenheimer",null,"19.02.1873","Höchst","Odenwald","Hessen",null,null,null,null,null,null,null,null,null,null,null,null,null,null,null,null,null,null,null,null,null,null,null,"Verbleib unbekannt "]
[184,"Regina","Oppenheimer","Mayer","26.12.1856",null,null,null,null,null,null,null,null,null,null,null,null,null,null,null,null,null,null,"X","1938-12-10",null,null,null,null,null,null,"Verbleib unbekannt "]
[185,"Anselm","Oppenheimer",null,"1905-02-08",null,null,null,null,null,null,null,null,null,null,null,null,null,null,"X",1894,null,null,null,null,null,null,null,null,null,null,"Verbleib unbekannt "]
[186,"Karoline ","Oppenheimer","Fahrmann",null,null,null,null,null,null,null,null,null,null,null,null,null,null,null,"X",1894,null,null,null,null,null,null,null,null,null,null,"Verbleib unbekannt "]
[187,"Leopold","Oppenheimer",null,"19.03.1893","Höchst","Odenwald","Hessen",null,null,null,null,null,null,null,null,null,null,null,null,null,null,null,null,null,null,null,null,null,null,null,"Verbleib unbekannt "]
[188,"Ferdinand","Oppenheimer",null,"11.09.1894","Höchst","Odenwald","Hessen",null,null,null,null,null,null,null,null,null,null,null,null,null,null,null,null,null,null,null,null,null,null,null,"Verbleib unbekannt "]
[189,"Siegfried","Oppenheimer",null,"1900-01-05","Höchst","Odenwald","Hessen",null,null,null,null,null,null,null,null,null,null,null,null,null,null,null,null,null,null,null,null,null,null,null,"lebte in Großbritannien"]
[190,"Arthur","Oppenheimer",null,"1902-10-02","Höchst","Odenwald","Hessen",null,null,null,null,null,null,null,null,null,null,null,null,null,null,null,null,null,null,null,null,"xx.02.1966","X",null,"1921 ausgewandert in die USA"]
[191,"Ludwig","Oppenheimer",null,"20.09.1898","Höchst","Odenwald","Hessen",null,null,null,"Höchst",null,null,null,null,null,null,null,null,null,null,null,null,null,null,"1905-04-25","Ausschwitz",null,null,null,"Vom Amtsgericht Berlin-Charlotten-Burg für tot erklärt","Online Synagoge"]
[192,"Adolf","Rapp",null,"24.11.1882 ","Höchst","Odenwald","Hessen",null,null,null,null,null,null,null,null,null,null,null,null,null,null,null,null,null,null,null,null,null,null,null,"Verbleib unbekannt ","Bundesarchiv Gedenkbuch"]
[193,"Jetta","Siegel",null,"06.06.1869",null,null,null,null,null,null,null,null,null,null,null,null,null,null,null,null,null,null,null,null,null,null,null,null,null,null,"Verbleib unbekannt "]
[194,"Ramche","Siegel",null,"26.01.1871",null,null,null,null,null,null,null,null,null,null,null,null,null,null,null,null,null,null,null,null,null,null,null,null,null,null,"Verbleib unbekannt "]
[195,"Rikche","Siegel",null,"27.04.1873",null,null,null,null,null,null,null,null,null,null,null,null,null,null,null,null,null,null,null,null,null,null,null,null,null,null,"Verbleib unbekannt "]
[196,"Jakob","Siegel",null,"13.05.1875",null,null,null,null,null,null,null,null,null,null,null,null,null,null,null,null,null,null,null,null,null,null,null,null,null,null,"Verbleib unbekannt "]
[197,"Siegfried ","Siegel",null,"02.11.1872","Höchst","Odenwald","Hessen",null,null,null,null,null,null,null,null,null,null,null,null,null,null,null,null,null,null,null,null,null,null,null,"Verbleib unbekannt "]
[198,"Fanni","Siegel",null,"28.02.1874","Höchst","Odenwald","Hessen","Ehemann",null,"verh. mit Kaufmann Simon Morgenstern",null,null,null,64345,"Dieburg","Georgenhausen",null,null,null,null,null,null,null,null,null,null,null,null,null,null,"Verbleib unbekannt "]
[199,"Jakob","Siegel",null,"13.05.1875","Höchst","Odenwald","Hessen",null,null,null,null,null,null,null,null,null,null,null,null,null,null,null,null,null,null,null,null,null,null,null,"Verbleib unbekannt "]
[200,"Jettchen Sara","Stein",null,"01.08.1889","Höchst","Odenwald","Hessen",null,null,null,"Höchst",null,null,null,"Frankfurt am Main",null,null,null,null,null,null,null,null,null,null,null,null,null,null,null,"Verbleib unbekannt ","Bundesarchiv Gedenkbuch"]
[201,"Berthold","Stein",null,"15.09.1894",null,null,null,null,null,null,null,null,null,null,null,null,null,null,null,null,null,null,null,null,null,null,null,null,null,null,"Verbleib unbekannt "]
[202,"Jettchen Sara ","Frank Trier",null,"19.09.1884","Höchst","Odenwald","Hessen","Elternteil",null,"Hannchen","Michelstadt",null,null,null,null,null,null,null,null,null,null,null,null,null,null,null,null,null,null,null,"Verbleib unbekannt ","Bundesarchiv Gedenkbuch"]
[204,"Rosa","Steiermann","Kohen ","07.02.1888","Höchst ","Odenwald","Hessen",null,null,null,"Biblis",null,null,null,"Frankfurt am Main",null,null,null,null,null,null,null,null,null,null,null,null,null,null,null,null,"Online Synagoge"]
[205,"Ludwig","Oppenheimer","Oppenheimer",1898,"Höchst","Odenwald","Hessen",null,null,null,"Höchst",null,null,null,null,null,null,null,null,null,null,null,null,null,null,null,null,null,null,null,null,"Bundesarchiv Gedenkbuch"]
["203","Fred","Haas","Fred Haas",null,"Michelstadt","Odenwald","Hessen","Sohn",null,"USA",null,null,null,null,null,null,null,null,{"$f":"IF(U208=\"\",\"\",\"X\")","v":""},null,{"$f":"IF(W208=\"\",\"\",\"X\")","v":""},null,{"$f":"IF(Y208=\"\",\"\",\"X\")","v":""},null,null,null,null,null,null,null,null,"Online Synagoge"]

{"sheet":"Bild","index":1,"n_rows":2,"n_cols":3,"rows_kept":2,"cut":false,"hidden":true,"merged":[]}
["LNr","                    Bild","Zusatz-Info"]
[6,null,"Text"]

{"sheet":"Daten_alt","index":2,"n_rows":208,"n_cols":39,"rows_kept":208,"cut":false,"hidden":true,"merged":[[0,37,0,38],[1,0,1,1],[1,8,1,10],[2,0,3,0],[2,1,3,1],[2,2,3,2],[2,3,2,7],[2,10,3,10],[2,11,2,13],[2,14,2,18],[0,0,0,1],[0,3,0,5],[0,8,0,10],[0,11,0,13],[0,15,0,16],[0,35,0,36],[2,32,3,32],[2,33,2,34],[2,35,2,36],[2,37,2,38],[2,19,2,20],[2,21,2,22],[2,23,2,24],[2,25,2,27],[2,28,2,30],[2,31,3,31]]}
["Neue Zeile einfügen",null,"Spalte sortieren","Datensatz - Eingabe durch",null,null,null,null,"Auswahl Verwandt-schaftsverhältnis",null,null,null,null,null,null,"Ortsteil auswählen",null,null,null,null,null,null,null,null,null,null,null,null,null,null,null,null,"Quelle auswählen",null,null,"Name Duplikat auswählen",null,"Endgültiger Check durch:"]
["Alle Zeilen anzeigen",null,"Wechsel zu Seite",null,null,null,null,null,null,null,null,null,null,null,null,null,null,null,null,null,null,null,null,null,null,null,null,null,null,null,null,null,"Bundesarchiv Gedenkbuch","EGS (Schüler)","2021-11-01"]
["LNr","Vorname","Name","Geburts-",null,null,null,null,"Verwandt-schafts-","mit","Erläuterung","Wohn-Adresse alt",null,null,"Wohn-Adresse neu",null,null,null,null,"verzogen",null,"geflohen",null,"abgemeldet",null,"Deportation",null,null,"Todesdatum",null,null,"Bemerkungen","Quelle","EGS (Schüler)",null,"Duplizierung des Datensatzes durch weiteren Eingeber",null,"Endgültiger Daten-Check "]
[null,null,null,"Name","Datum","Ort","Kreis","Land","Verhältnis","LNr Spalte A",null,"Wohnort","Straße","Haus-Nr.","PLZ","Wohnort","Kerngemeinde / Ortsteil","Straße","Haus-Nr.","X","Datum","X","Datum","X","Datum","ab","am","nach","Datum","gesi-chert","ver-mutet",null,null,"Name","Datum","Name","Datum","Name","Datum"]
["Bsp.","Hanna","Beispiel","Hess","1900-01-01","X-Dorf","Y-Kreis","Hessen-Naussau","Ehemann",6,"ABC","Höchst","Beispielstraße",3,64739,"Höchst","Hassenroth","Neue Beispielstraße",1,{"$f":"IF(U5=\"\",\"\",\"X\")","v":"X"},"1940-04-15",{"$f":"IF(W5=\"\",\"\",\"X\")","v":"X"},"1941-05-01",{"$f":"IF(Y5=\"\",\"\",\"X\")","v":"X"},"1941-12-31","Darmstadt","1942-09-30","Treblinka","1944-04-01"," ","X",null,"Bundesarchiv Gedenkbuch","Monika Giesen-Wiese","2020-06-01","Monika Giesen-Wiese","2020-06-01","Gemeinde-Archivar","2020-05-18"]
[0,null,null,null,null,null,null,null,null,null,null,null,null,null,null,null,null,null,null,{"$f":"IF(U6=\"\",\"\",\"X\")","v":""},null,{"$f":"IF(W6=\"\",\"\",\"X\")","v":""},null,{"$f":"IF(Y6=\"\",\"\",\"X\")","v":""}]
[1,"Julius","Altheimer","Altheimer","09.01.1876","Bergen ","Kassel","Hessen","Ehemann",2,"geheiratet 29.10.1905",null,null,null,null,null,"New York ",null,null,null,null,null,null,null,"1941-05-24"]
[2,"Emma ","Altheimer","Krämer","26.06.1871","Höchst ","Odenwald","Hessen ","Ehefrau ",1,"geheiratet 29.10.1905","Höchst",null,null,null,null,"New York ",null,null,null,null,null,null,null,"1941-05-24",null,null,null,null,null,null,null,"Bundesarchiv Gedenkbuch","Moritz Leib","2021-10-02"]
[3,"Herta","Altheimer","Edelmuth","1912-07-11","Höchst ","Odenwald","Hessen ","Ehefrau ",null,"East Sherman Avenue - Vineland - New Jersey","Höchst "]
[4,"Herberth ","Altheimer","Altheimer","1906-08-24","Höchst ","Odenwald","Hessen ",null,null,"USA","Höchst ",null,null,null,null,null,null,null,null,null,null,null,null,"1933-05-10"]
[5,"Sally","Flörsheimer","Kahn","1911-07-10","Höchst","Odenwald","Hessen","Tochter & Mutter ","6,7 & 8,9,10  ","USA",null,null,null,null,null,null,null,null,null,null,null,null,null,"1938-11-01"]
[6,"Hermann","Kahn","Kahn",null,null,null,null,"Vater & Ehemann","5 & 7","USA",null,null,null,null,null,null,null,null,null,null,null,null,null,"1938-11-01"]
[7,"Frieda","Kahn","Oppenheimer",null,null,null,null,"Mutter & Ehefrau ","5 & 6","USA",null,null,null,null,null,null,null,null,null,null,null,null,null,"1938-11-01",null,null,null,null,null,null,null,null,"EGS (Schüler)","2021-10-02"]
[8,"Frieda",null,"Flörsheimer","1928-11-23",null,null,null,"Tochter ",5,"USA",null,null,null,null,null,null,null,null,null,null,null,null,null,"1938-11-01"]
[9,"Joseph, Justin",null,"Flörsheimer","1930-01-01",null,null,null,"Sohn",5,"USA",null,null,null,null,null,null,null,null,null,null,null,null,null,"1938-11-01"]
[10,"Manfred",null,"Flörsheimer","1931-11-27",null,null,null,"Sohn",5,"USA",null,null,null,null,null,null,null,null,null,null,null,null,null,"1938-11-01"]
[11,"Adolf","Haas","Haas","17.03.1877",null,null,null,"Vater ",12,"USA","Höchst",null,null,null,null,"Frankfurt am Main",null,null,null,null,null,null,null,"1938-12-20",null,null,null,null,null,"X","In Israel begraben "]
[12,"Klara","Lomnitzer","Haas","1905-06-07",null,null,null,"Tochter & Ehefrau","11&13","11227 Brooklyn, Putman Ave 16/15",null,null,null,null,null,null,null,null,null,null,null,null,null,"1938-01-31"]
[13,"Herbert","Lomnitzer","Lomnitzer",null,null,null,null,"Ehemann",12,"11227 Brooklyn, Putman Ave 16/15",null,null,null,null,null,null,null,null,null,null,null,null,null,"1938-01-31"]
[14,"Julius","Haas","Haas","1907-01-13",null,null,null,"Sohn & Vater","11&16","Israel",null,null,null,null,null,null,null,null,null,null,null,null,null,"1905-04-16",null,null,null,null,null,"X","In Israel"]
[15,"Rosa, Ruth","Schilling","Haas","1913-02-12",null,null,null,"Tochter",11,"USA"]
[16,"Margrit","Haas","Haas","1923-07-03","Höchst","Odenwald","Hessen","Tochter",14,"USA","Michelstadt","Ostendstraße",25,null,null,null,null,null,null,null,null,null,null,"1938-12-20",null,null,null,null,null,null,null,"Bundesarchiv Gedenkbuch","Moritz Leib","2021-10-02"]
[17,"Werner ","Haas","Haas","1926-04-01","Michelstadt","Odenwald","Hessen","Sohn",14,"USA","Michelstadt","Ostendstraße",25,null,null,null,null,null,null,null,null,null,null,"1938-12-20",null,null,null,null,null,null,null,"Internet Synagoge","Moritz Leib","2021-10-02"]
[18,"Frieda",null,"Haas","1928-09-30",null,null,null,"Tochter",14,"USA",null,null,null,null,null,null,null,null,null,null,null,null,null,"1938-12-20"]
[19,"Karl","Herzfeld","Herzfeld","1913-10-30",null,null,null,"Ehemann",20,"46668 Gideon Hashofet, Herzlia-Pituach Israel",null,null,null,null,null,null,null,null,null,null,null,null,null,"1905-04-17"]
[20,"Elsa","Herzfeld","Frank","1910-02-17","Höchst ","Odenwald","Hessen","Ehefrau ",19,"2929 Franklin Road Nashville",null,null,null,null,null,null,null,null,null,null,null,null,null,"1937-04-05"]
[21,"Hugo","Kahn","Kahn","1920-02-13","Mümling-Grumbach","Odenwald","Hessen",null,null,"Nashville, Tennesee"]
[22,"Julius","Kahn","Kahn","1910-10-28","Höchst ","Odenwald","Hessen",null,null,"USA",null,null,null,null,null,null,null,null,null,null,null,null,null,"1936-09-27"]
[23,"Leo","Kahn","Kahn","1912-11-19",null,null,null,null,null,"720 West, 170th Street 32, New York City"]
[24,"Hugo","Kahn","Kahn","1913-09-23","Höchst ","Odenwald","Hessen",null,null,"Usa",null,null,null,null,null,null,null,null,null,null,null,null,null,"1936-09-27"]
[25,"Lilli",null,"Kahn","1916-10-01",null,null,null,null,null,"New York ",null,null,null,null," ",null,null,null,null,null,null,null,null,"1937-05-21"]
[29,"Hermann","Kahn","Kahn","05.05.1877",null,null,null,null,null,"New York ",null,null,null,null,null,null,null,null,null,null,null,null,null,"1938-06-27"]
[30,"Isaac II.","Kahn","Kahn","18.02.1880",null,null,null,"Ehemann",31,"New York ",null,null,null,null,null,null,null,null,null,null,null,null,null,"1934-11-26"]
[31,"Hannchen","Kahn","Rosenstock","11.03.1888",null,null,null,"Ehefrau",30,"New York ",null,null,null,null,null,null,null,null,null,null,null,null,null,"1934-11-26"]
[32,"Hermann","Kahn","Kahn","18.09.1878","Dörnigheim","Hanau","Hessen",null,null,"New York ",null,null,null,null,null,null,null,null,null,null,null,null,null,"1938-11-24"]
[33,"Regina (Rosa)","Flörsheimer","Kahn","1906-12-11","Höchst ","Odenwald","Hessen ","Ehemann",5,"New York ",null,null,null,null,null,null,null,null,null,null,null,null,null,"1938-11-01",null,null,null,null,null,null,null,"Bundesarchiv Gedenkbuch","Moritz Leib","2021-10-02"]
[34,"Selma","Grünstein",null,"1908-08-07","Höchst ","Odenwald","Hessen",null,null,"1929 geheiratet und nach Miltenberg verzogen, von dort aus dann in die USA",null,null,null,null,null,null,null,null,null,null,null,null,null,"1929-12-21"]
[35,"Gertrud (Ruth)","Stern",null,"1911-11-21","Höchst ","Odenwald","Hessen",null,null,"wohnte zurZeit der Erstauflage des Buchs in New York (199-1424 Avenue Bayside L.J.) in zweiter Ehe verheiratet mit Recha Stern, Hochzeit 1927, 1938 nach Frankfurt, 1939 nach New York",null,null,null,null,null,null,null,null,null,null,null,null,null,"24.11.1938 nach Frankfurt, dann 1939 nach New York"]
[36,"Meier Max (Meinhold)","Stern","Stern","1928-02-23",null,null,null,"Sohn",null,"1938 nach Frankfurt, 1939 nach New York",null,null,null,null,null,null,null,null,null,null,null,null,null,"24.11.1938 nach Frankfurt, dann 1939 nach New York"]
[37,"Jeanette","Krämer","Blumenthal","07.01.1872","Höchst","Odenwald","Hessen","Ehefrau ",null,"USA","Höchst",null,null,null,null,null,null,null,null,null,null,null,null,"1937-08-02"]
[38,"Ludwig","Krämer","Krämer","22.10.1899","Höchst ","Odenwald","Hessen","Sohn ",null,"USA",null,null,null,null,null,null,null,null,null,null,null,null,null,"1937-08-02"]
[39,"Mai","Koppel","Koppel","18.03.1885","Höchst ","Odenwald","Hessen","Ehemann",null,"New York ",null,null,null,null,null,null,null,null,null,null,null,null,null,"1937-01-24"]
[40,"Regina","Koppel","Schott ","29.04.1865",null,null,null,"Ehefrau ",null,"New York ",null,null,null,null,null,null,null,null,null,null,null,null,null,"1937-01-24"]
[41,"Emma ","Reinheimer","Koppel","1988-12-06","Höchst ","Odenwald","Hessen","Tochter",null,"New York ",null,null,null,null,null,null,null,null,null,null,null,null,null,"1937-01-24"]
[42,"Jenny","Oppenheimer","Adler","18.08.1867","Kelsterbach","Groß-Gerau","Hessen","Ehefrau ",null,"New York ",null,null,null,null,null,null,null,null,null,null,null,null,null,"1937-11-15"]
[43,"Bartha","Oppenheimer","Oppenheimer","1906-09-14","Höchst ","Odenwald","Hessen","Sohn ",null,"New York ",null,null,null,null,null,null,null,null,null,null,null,null,null,"1934-02-13"]
[44,"Ernst","Oppenheimer","Oppenheimer","1910-05-11","Höchst ","Odenwald","Hessen","Sohn ",null,"New York ",null,null,null,null,null,null,null,null,null,null,null,null,null,"1936-04-25"]
[45,"Israel","Reinheimer","Reinheimer","29.06.1887","Beerfelden","Odenwald","Hessen","Ehemann",null,"Nashville TN USA",null,null,null,null,null,null,null,null,null,null,null,null,null,"1938-12-20"]
[46,"Sally","Reinheimer","Reinheimer","1921-01-04","Höchst ","Odenwald","Hessen","Tochter",null,"USA",null,null,null,null,null,null,null,null,null,null,null,null,null,"1937-06-15"]
[47,"Hedi","Reinheimer","Reinheimer","1930-06-09","Höchst ","Odenwald","Hessen","Tochter",null,"Nashville TN USA",null,null,null,null,null,null,null,null,null,null,null,null,null,"1938-12-20"]
[48,"Ludwig","Reinheimer","Reinheimer","1932-07-12","Höchst ","Odenwald","Hessen","Sohn ",null,"Naschville TN USA",null,null,null,null,null,null,null,null,null,null,null,null,null,"1938-12-20"]
[49,"Max","Reinheimer","Reinheimer","07.09.1891","Beerfelden","Odenwald","Hessen","Ehemann",null,"New York ",null,null,null,null,null,null,null,null,null,null,null,null,null,"1937-01-24"]
[50,"Siegfried","Reinheimer","Reinheimer","1922-11-16","Höchst ","Odenwald","Hessen","Sohn ",null,"New York ",null,null,null,null,null,null,null,null,null,null,null,null,null,"1937-01-24"]
[51,"Kurt","Reinheimer","Reinheimer","1926-11-16","Höchst ","Odenwald","Hessen","Sohn ",null,"New York ",null,null,null,null,null,null,null,null,null,null,null,null,null,"1937-01-24"]
[52,"Gieda","Grünebaum","Siegel","13.04.1867","Höchst ","Odenwald","Hessen ","Ehefrau ",null,"Holland",null,null,null,null,null,null,null,null,null,null,null,null,null,"1938-11-11",null,null,null,null,null,null,null,"Online Synagoge","Moritz Leib","2021-11-01"]
[53,"Rosa","Siegel","Siegel","24.11.1890","Höchst ","Odenwald","Hessen",null,null,"Hilversum",null,null,null,null,null,null,null,null,null,null,null,null,null,"1939-01-06",null,null,null,null,null,null,null,"Online Synagoge","Moritz Leib","2021-11-01"]
[54,"Martha","Flörsheimer",null,"1911-10-05","Höchst ","Odenwald","Hessen",null,null,"New York ",null,null,null,null,null,null,null,null,null,null,null,null,null,"1943-01-28"]
[55,"Sophie","Wetterhahn ","Herzfeld","19.11.1876","Höchst ","Odenwald","Hessen","Ehefrau & Tochter",null,"Geheiratet 2.8.1900 mit Kaufmann Wetterhahn Tochter von Erna Sachs New York ","Heidelberg",null,null,null,null,null,null,null,null,null,null,null,null,null,null,null,null,"1905-05-03",null,null,null,"Online Synagoge","Moritz Leib ","2021-11-01"]
[56,"Paula","Kahn",null,"1905-03-22",null,null,null,"Tochter",null,"Von Löser Kahn, Houston / Texas ",null,null,null,null,null,null,null,null,null,null,null,null,null,null,null,null,null,"1985-09-26"]
[57,"Fritz","Reinheimer",null,"1929-01-04","Höchst ","Odenwald","Hessen",null,null,"Nashville",null,null,null,null,null,null,null,null,null,null,null,null,null,"1937-06-15"]
[58,"Emma ","Reinheimer","Mai","6.12.1888","Höchst ","Odenwald","Hessen",null,null,"New York ",null,null,null,null,null,null,null,null,null,null,null,null,null,"1937-01-24",null,null,null,"1946-02-06"]
[59,"Gustav Isr","Flörsheimer","Flörsheimer","1909-06-06","Höchst ","Odenwald","Hessen",null,null,"Philadelphia ","Frankfurt am Main","Rückerstraße",57,null,"China",null,null,null,null,null,null,null,null,null,null,null,null,"1905-06-07",null,null,null,"Bundesarchiv Gedenkbuch","Moritz Leib ","2021-11-01"]
[60,"Heinrich ","Herzfeld","Herzfeld","16.12.1886","Höchst ","Odenwald","Hessen",null,null,null,null,null,null,null,null,"Frankfurt am Main (3.12.1935)",null,null,null,null,null,null,null,null,null,"1942-09-11","im Osten",null,"X",null,null,"Online Synagoge","Moritz Leib ","2021-11-01"]
[61,"Klara","Herzfeld","Meyer ","12.07.1889","Groß-Bieberach",null,null,null,null,null,"Höchst ",null,null,null,null,"Frankfurt am Main (3.12.1935)",null,null,null,null,null,null,null,null,null,null,null,"1942-09-25","X",null,null,"Bundesarchiv Gedenkbuch","Moritz Leib ","2021-11-01"]
[62,"Eva","Klumann","Herzfeld","22.6.1883",null,null,null,"Ehefrau & Tochter",null,"Leopold Klumann & Joseph Herzfeld","Höchst ",null,null,null,null,null,null,null,null,null,null,null,null,null,null,null,"Theresienstadt (mit Mann)","1944-12-23","X"]
[63,"Marx","Herzfeld",null,"30.11.1885",null,null,null,"Mutter ",null,"Elsa Frank, Nashville Tennesee",null,null,null,null,null,"Mainz",null,null,null,null,null,null,null,null,null,null,"Bergen-Belsen","1942-08-28","X"]
[64,"Moses","Kahn","Kahn","22.8.1894","Höchst ","Odenwald","Hessen",null,null,null,"Darmstadt",null,null,null,"Polen",null,null,null,null,null,null,null,null,null,null,null,null,"1954-12-31",null,"X",null,"Online Synagoge ","Moritz Leib","2021-11-01"]
[65,"Ida-Dora","Flörsheimer",null,"1905-02-24","Höchst ","Odenwald","Hessen","Ehefrau ",null,"Meier Flörsheimer",null,null,null,null,null,null,null,null,null,null,null,null,null,"1939-04-27",null,null,null,null,"X"]
[66,"Ruth ","Krämer ","Krämer","1934-10-29","Höchst ","Odenwald","Hessen ",null,null,null,null,null,null,null,null,null,null,null,null,null,null,null,null,null,null,"1942-09-24","Darmstadt dann Ausschwitz ",null,"X",null,null,"Online Synagoge","Moritz Leib","2021-11-01"]
[67,"Ilse","Krämer ","Krämer","1936-01-27","Höchst ","Odenwald","Hessen",null,null,null,null,null,null,null,null,null,null,null,null,null,null,null,null,null,null,"1942-09-24","Ausschwitz ",null,"X",null,null,"Online Synagoge","Moritz Leib","2021-11-01"]
[68,"Babette","Hirsch ","Hirsch","24.8.1867","Höchst ","Odenwald","Hessen",null,null,null,"Höchst","Hitlerstraße",13,null,null,null,null,null,null,null,null,null,null,null,null,"1942-09-24","Darmstadt dann Theresienstadt  ","1942-12-15","X",null,null,"Online Synagoge und Bundesarchiv Gedenkbuch","Moritz Leib","2021-11-01"]
[69,"Jettchen ","Hirsch ","Hirsch","12.1.1874","Höchst ","Odenwald","Hessen",null,null,null,null,null,null,null,null,null,null,null,null,null,null,null,null,null,null,"1942-09-24","Darmstadt dann Theresienstadt  ","1943-01-03","X",null,null,"Online Synagoge und Bundesarchiv Gedenkbuch","Moritz Leib","2021-11-01"]
[70,"Hannchen ","Löb ","Löb","8.3.1875","Höchst ","Odenwald","Hessen",null,null,null,null,null,null,null,null,null,null,null,null,null,null,null,null,null,null,"1942-09-24","Darmstadt dann Theresienstadt  ","1942-11-29","X",null,null,"Online Synagoge und Bundesarchiv Gedenkbuch","Moritz Leib","2021-11-01"]
[71,"Paula","Löb ","Löb","16.6.1882","Höchst ","Odenwald","Hessen",null,null,null,null,null,null,null,null,null,null,null,null,null,null,null,null,null,null,"1942-09-24","Darmstadt dann Theresienstadt  ",null,"X",null,null,"Online Synagoge und Bundesarchiv Gedenkbuch","Moritz Leib","2021-11-01"]
[72,"Berta","Löb ","Löb","26.9.1876","Höchst ","Odenwald","Hessen",null,null,null,null,null,null,null,null,null,null,null,null,null,null,null,null,null,null,"1942-09-24","Darmstadt dann Theresienstadt  ",null,"X",null,null,"Bundesarchiv Gedenkbuch"]
[73,"Sarah ","Krämer ","Krämer ","26.2.1876","Höchst ","Odenwald","Hessen","Tochter",null,"Lösermann Krämer II.","Höchst",null,null,null,null,null,null,null,null,null,null,null,null,null,null,null,null,"1942-10-14","X"]
[74,"Heinrich ","Oppenheimer","Oppenheimer","17.5.1876","Höchst ","Odenwald","Hessen","Sohn",null,"Marx Oppenheimer","Höchst",null,null,null,null,null,null,null,null,null,null,null,null,null,null,null,null,"1942-09-13","X"]
[75,"Jettchen ","Hamburger","Flörsheimer","12.7.1876","Höchst ","Odenwald","Hessen","Tochter ",null,"Isaak Flörsheimer","Höchst",null,null,null,null,null,null,null,null,null,null,null,null,null,null,null,"Theresienstadt","1944-02-02","X"]
[76,"Ernst","Herzfeld","Ernst","1921-10-17","Höchst ","Odenwald","Hessen",null,null,null,"Höchst",null,null,null,"Wiesbaden",null,null,null,"X",13121,null,null,null,null,null,null,"Maydanek","1942-07-27","X",null,null,"Bundesarchiv Gedenkbuch und Online Synagoge","Moritz Leib","2021-11-01"]
[77,"Mathilde","Mai","Mai","1901-03-20","Höchst ","Odenwald","Hessen",null,null,null,"Höchst",null,null,null,null,null,null,null,null,null,null,null,null,null,null,"1942-04-28","im Osten",null,"X",null,null,"Online Synagoge","Moritz Leib","2021-11-01"]
[78,"Abraham","Mai","Mai","5.4.1858","Höchst ","Odenwald","Hessen","Ehemann",null,null,"Höchst",null,null,null,null,null,null,null,null,null,null,null,null,null,"Darmstadt","1942-04-28","Theresienstadt (mit Frau) ","1943-04-11","X",null,null,"Online Synagoge und Bundesarchiv Gedenkbuch","Moritz Leib","2021-11-01"]
[79,"Ferdinand","Muhr","Muhr","14.11.1871","Höchst ","Odenwald","Hessen","Sohn",null,"Joel Muhr","Höchst",null,null,null,"Köln",null,null,null,"X",null,null,null,null,null,"Wiesbaden",null,"Theresienstadt","1942-06-26","X",null,null,"Online Synagoge","Moritz Leib","2021-11-01"]
[80,"Abraham","Muhr","Muhr","3.8.1865","Höchst ","Odenwald","Hessen","Sohn",null,"Joel Muhr","Höchst",null,null,null,"Frankfurt am Main",null,null,null,"X",null,null,null,null,null,"Wiesbaden",null,"Theresienstadt","1942-08-27","X"]
[81,"Fanny","Muhr","Muhr","17.2.1869","Höchst ","Odenwald","Hessen","Tochter",null,"Joel Muhr","Höchst",null,null,null,"Darmstadt",null,null,null,"X",null,null,null,null,null,"Wiesbaden",null,"Theresienstadt","1942-12-14","X",null,null,"Online Synagoge und Bundesarchiv Gedenkbuch","Moritz Leib","2021-11-01"]
[82,"Leopold","Krämer","Krämer","8.12.1884","Höchst ","Odenwald","Hessen",null,null,null,"Höchst",null,null,null,null,null,null,null,null,null,null,null,null,null,null,null,null,"1942-07-12","X",null,"In Frankfurt am Main auf dem Weg in ein KZ verstorben","Bundesarchiv Gedenkbuch","Moritz Leib","2021-11-01"]
[83,"Dora","Krämer","Hess","15.3.1896","Birstein","Main-Kinzig ","Hessen",null,null,null,"Höchst",null,null,null,null,null,null,null,null,null,null,null,null,null,null,"1942-09-24","Darmstadt dann Ausschwitz ",null,"X",null,null,"Online Synagoge ","Moritz Leib","2021-11-01"]
[84,"Eva","Krämer","Krämer","1928-12-15","Höchst ","Odenwald","Hessen",null,null,null,"Höchst",null,null,null,null,null,null,null,null,null,null,null,null,null,null,"1942-09-24","Darmstadt dann Ausschwitz ",null,"X",null,null,"Online Synagoge ","Moritz Leib","2021-11-01"]
[85,"Betty","Krämer","Krämer","1932-11-01","Höchst ","Odenwald","Hessen",null,null,null,"Höchst",null,null,null,null,null,null,null,null,null,null,null,null,null,null,"1942-09-24","Darmstadt dann Ausschwitz ",null,"X",null,null,"Online Synagoge","Moritz Leib","2021-11-01"]
[86,"Emil","Kahn",null,"15.12.1887",null,null,null,null,null,null,"Mümling-Grumbach",null,null,null,null,null,null,null,null,null,null,null,null,null,null,"1942-04-28","im Osten",null,"X",null,null,"Bundesarchiv Gedenkbuch","Moritz Leib","2021-11-01"]
[87,"Rosa","Kahn","Fink","18.09.1894",null,null,null,null,null,null,"Mümling-Grumbach",null,null,null,null,null,null,null,null,null,null,null,null,null,null,"1942-04-28","im Osten",null,"X"]
[88,"Julius","Kahn",null,"1932-04-17",null,null,null,null,null,null,"Mümling-Grumbach",null,null,null,null,null,null,null,null,null,null,null,null,null,null,"1942-04-28","im Osten",null,"X"]
[89,"Hermann","Kahn",null,"05.11.1880",null,null,null,null,null,null,"Mümling-Grumbach",null,null,null,null,null,null,null,null,null,null,null,null,null,null,"1942-04-28","im Osten",null,"X"]
[90,"Sophie","Kahn","Guttmann","01.03.1882",null,null,null,null,null,null,"Mümling-Grumbach",null,null,null,null,null,null,null,null,null,null,null,null,null,null,"1942-04-28","im Osten",null,"X"]
[91,"Gutta","Kahn",null,"1916-03-18",null,null,null,null,null,null,"Mümling-Grumbach",null,null,null,null,null,null,null,null,null,null,null,null,null,null,"1942-04-28","im Osten",null,"X",null,null,"Bundesarchiv Gedenkbuch","Moritz Leib","2021-11-01"]
[92,"Manfred","Kahn",null,"1918-11-20",null,null,null,null,null,null,"Mümling-Grumbach",null,null,null,"Allanzberg","Kr.Potsdam",null,null,null,null,null,null,null,null,null,null,"Birkenau",null,"X",null,null,"Bundesarchiv Gedenkbuch","Moritz Leib","2021-11-01"]
[93,"Karoline ","Kahn",null,"23.10.1870",null,null,null,null,null,null,"Hetschbach",null,null,null,"Darmstadt",null,null,null,null,null,null,null,null,null,null,null,"Theresienstadt","1943-01-13","X"]
[94,"Rosa","Strauss","Rapp","26.06.1879",null,null,null,null,null,null,"Hetschbach",null,null,null,"Frankfurt am Main/ nachher Niederlande ",null,null,null,null,null,null,null,null,null,null,null,"im Osten","1945-12-31","X",null,null,"Online Synagoge","Moritz Leib","2021-11-01"]
[95,"Hermann","Neu",null,"10.06.1891",null,null,null,null,null,null,"Hetschbach",null,null,null,null,null,null,null,null,null,null,null,null,null,null,"1942-04-28",null,null,"X"]
[96,"Herbert","Altheimer",null,"1906-08-24","Höchst ","Odenwald","Hessen",null,null,null,null,null,null,null,null,null,null,null,null,null,null,null,"X","1933-05-10",null,null,null,"1905-06-05","X",null,"emigrierte nach New York(USA), dort verstorben"]
[97,"Maier","Flörsheimer",null,"23.02.1874","Höchst ","Odenwald","Hessen","Sohn",null,"Isaak Flörsheim     Malchen geb. Trier",null,null,null,null,null,null,null,null,null,null,null,null,null,null,null,null,null,null,null,null,"Verbleib unbekannt"]
[98,"Arthur","Flörsheimer",null,"1905-03-03","Höchst ","Odenwald","Hessen",null,null,null,null,null,null,null,null,null,null,null,null,null,null,null,"X","1938-10-25",null,null,null,null,"X",null,"emigrierte nach New York(USA), dort verstorben","Bundesarchiv Gedenkbuch","Moritz Leib","2021-11-01"]
[99,"Mina","Flörsheimer",null,"1905-02-10",null,null,null,null,null,null,null,null,null,null,null,null,null,null,null,null,null,null,"X","1938-10-25",null,null,null,null,null,null,"Verbleib unbekannt"]
[100,"Hadwig?","Flörsheimer",null,"26.02.1894",null,null,null,null,null,null,null,null,null,null,null,null,null,null,null,null,null,null,"X","1938-10-25",null,null,null,null,"X",null,"emigrierte nach New York(USA), dort verstorben"]
[101,"Heinrich Israel","Flörsheimer",null,"1910-08-27","Höchst ","Erbach","Hessen",null,null,null,"Frankfurt am Main","Gemisstraße",20,null,"New York",null,null,null,null,null,null,null,"X","1938-10-25",null,null,null,"1965-11-19","X",null,"emigrierte nach New York(USA), dort verstorben","Bundesarchiv Gedenkbuch","Moritz Leib","2021-11-01"]
[102,"Else","Sternheimer",null,"1902-02-26",null,null,null,null,null,null,null,null,null,null,null,null,null,null,null,null,null,null,"X","1905-04-16",null,null,null,null,null,null,"Verbleib unbekannt"]
[103,"Ferdinand","David",null,"1905-03-17",null,null,null,null,null,null,null,null,null,null,null,null,null,null,null,null,null,null,"X","1934-03-29",null,null,null,null,null,null,"Verbleib unbekannt"]
[104,"Meti","Holländer",null,"1905-03-29",null,null,null,null,null,null,null,null,null,null,null,null,null,null,null,null,null,null,"X","1934-06-01",null,null,null,null,null,null,"Verbleib unbekannt"]
[105,"Irene","Oppenheimer",null,null,null,null,null,null,null,null,null,null,null,null,null,null,null,null,null,null,null,null,"X","1934-11-20",null,null,null,null,null,null,"Verbleib unbekannt"]
[106,"Manfred","Levi",null,"1905-07-18",null,null,null,null,null,null,null,null,null,null,null,null,null,null,null,null,null,null,"X",null,null,null,null,null,null,null,"Verbleib unbekannt"]
[107,"Margot","Meyer",null,"1918-04-10",null,null,null,null,null,null,null,null,null,null,null,null,null,null,null,null,null,null,"X","1905-04-18",null,null,null,null,null,null,"Verbleib unbekannt"]
[108,"Hertha","Meyer",null,"1913-07-17",null,null,null,null,null,null,null,null,null,null,null,null,null,null,null,null,null,null,"X","1905-04-20",null,null,null,null,null,null,"Verbleib unbekannt"]
[109,"David","Kahn",null,"23.07.1883","Hetschbach","Odenwald","Hessen",null,null,null,null,null,null,null,null,null,null,null,null,null,null,null,"X","1934-11-06",null,null,null,"1943-08-19",null,"X","Zugezogen nach Höchst am 20.04.1937, Herkunft unbekannt, Verbleib unbekannt","Bundesarchiv Gedenkbuch"]
[110,"Marx","Kahn",null,"1924-05-10","Seeheim",null,null,null,null,null,null,null,null,null,null,null,null,null,null,null,null,null,null,null,null,null,null,null,null,null,"Verbleib unbekannt"]
[111,"Samuel","Grünebaum",null,"04.04.1875","Hofstetten","Miltenberg","Bayern","Ehemann",null,"Gieda geb.Siegel ","Höchst",null,null,null,"Niederlande",null,null,null,null,null,null,null,null,null,null,null,null,null,null,null,null,"Online Synagoge","Moritz Leib","2021-11-02"]
[112,"Isidor","Grünebaum",null,"1904-04-05",null,null,null,null,null,null,null,null,null,null,null,null,null,null,null,null,null,null,null,null,null,null,null,"1905-05-05","X",null,"verstarb in New York(USA)"]
[113,"Therese","Grünebaum",null,"1906-07-27","Höchst","Odenwald","Hessen",null,null,null,null,null,null,null,null,null,null,null,null,null,null,null,null,null,null,null,null,"1976-04-15","X",null,"verstarb in New York(USA)"]
[114,"Julius Israel","Grünebaum",null,"1902-05-10","Höchst","Odenwald","Hessen",null,null,null,"Höchst",null,null,null,"Niederlande",null,null,null,null,null,null,null,"X","1933-07-25",null,null,null,null,"X",null,"starb zusammen mit seiner Frau im KZ","Online Synagoge","Moritz Leib","2021-11-02"]
[115,"Leopold","Haas",null,"06.06.1884","Neustadt","Odenwald","Hessen",null,null,null,"Michelstadt",null,null,null,"Höchst",null,null,null,null,null,null,null,"X","1938-12-15",null,null,null,null,null,null,"genannt \"Geilsjesel\", Pferdehändler, Verbleib unbekannt"]
[116,"Isabellaa","Haas","Strauß","27.02.1897",null,null,null,null,null,null,null,null,null,null,null,null,null,null,null,null,null,null,"X","1938-12-20",null,null,null,null,null,null,"Verbleib unbekannt"]
[117,"Alfred Günther","Haas",null,"1928-09-30","Höchst","Odenwald","Hessen",null,null,null,"Frankfurt am Main",null,null,null,"Minsk/Weißrussland",null,null,null,null,null,null,null,"X","1938-12-20",null,null,null,null,null,null,"Verbleib unbekannt","Online Synagoge und Bundesarchiv Gedenkbuch","Moritz Leib","2021-11-02"]
[118,"Meta","Haas",null,"1911-08-13",null,null,null,null,null,null,null,null,null,null,null,null,null,null,null,null,null,null,"X","1938-12-15",null,null,null,null,null,null,"Verbleib unbekannt","Bundesarchiv Gedenkbuch","Moritz Leib","2021-11-02"]
[119,"Isidor","Haas",null,"24.06.1895",null,null,null,"Bruder",null,"Leopold Haas","Frankfurt am Main","Ostendstraße",25,null,"Nach New York ausgewandert",null,null,null,null,null,null,null,"X","1938-12-20",null,null,null,null,"X",null,"verstarb in New York(USA)","Bundesarchiv Gedenkbuch","Moritz Leib","2021-11-02"]
[120,"Julius Yuz","Haas",null,"25.10.1899","Neustadt","Marburg-Biedenkopf","Hessen","Bruder",null,"Leopold Haas","Neustadt",null,null,null,"Höchst",null,null,null,null,null,null,null,"X","1938-12-20",null,null,null,null,null,null,"Verbleib unbekannt","Online Synagoge","Moritz Leib","2021-11-02"]
[121,"Marx","Haas",null,"1903-03-23","nicht in Höchst",null,null,null,null,null,null,null,null,null,null,null,null,null,null,null,null,null,"X","1905-04-18",null,null,null,null,null,null,"Verbleib unbekannt"]
[122,"Sophie","Wetterhahn ","Herzfeld","19.11.1876","Höchst","Odenwald","Hessen","Ehemann",null,"heirate Kaufmann Wetterhahn am 02.08.1900 in Weinheim","Heidelberg",null,null,null,"Gurs/Frankreich",null,null,null,null,null,null,null,null,null,null,null,null,"1905-05-03",null,null,"Verstorben im New York im Haushalt ihrer Tochter Erna Sachs","Online Synagoge ","Moritz Leib","2021-11-02"]
[123,"Jettche","Herzfeld",null,"20.04.1870","Höchst","Odenwald","Hessen","Ehemann",null,"verheiratet mit David Sternheimer am 12.07.1896 nach Viernheim ",null,null,null,null,null,null,null,null,null,null,null,null,null,null,null,null,null,null,null,null,"Verbleib unbekannt"]
[124,"Bertha","Haas",null,"1911-04-24",null,null,null,"Ehemann",null,"mit Rabbiner Max Koppel in New York verheiratet",null,null,null,null,null,null,null,null,null,null,null,null,null,null,null,null,null,null,null,null,"verstorben"]
[125,"Kurt","Haas",null,"1912-05-26",null,null,null,null,null,null,null,null,null,null,null,null,null,null,null,null,null,null,null,null,null,null,null,null,null,null,"in Emigration gestorben"]
[126,"Leo","Haas",null,"1913-12-12",null,null,null,null,null,null,null,null,null,null,null,null,null,null,null,null,null,null,null,null,null,null,null,null,null,null,"verstorben in Asucion; Paraguay"]
[127,"Walter","Haas",null,"1915-08-26",null,null,null,null,null,null,null,null,null,null,null,null,null,null,null,null,null,null,null,null,null,null,null,null,null,null,"verstorben in Amerika"]
[128,"Ernst","Haas",null,"1918-06-05",null,null,null,null,null,null,null,null,null,null,null,null,null,null,null,null,null,null,null,null,null,null,null,null,null,null,"z.Zt. Wohnhaft in Argentinien"]
[129,"Rosi","Rein ","Haas","1920-02-11",null,null,null,null,null,null,null,null,null,null,null,null,null,null,null,null,null,null,null,null,null,null,null,null,null,null,"wohnt in Paraguay"]
[130,"Willi","Haas",null,"1922-02-22",null,null,null,null,null,null,null,null,null,null,null,null,null,null,null,null,null,null,null,null,null,null,null,null,null,null,"lebte in Argentinien, verstarb in den USA"]
[131,"Bernhard","Herzfeld",null,"23.03.1866","Höchst","Odenwald","Hessen","Ehefrau",null,"verheiratet anch Weiterstadt am 1897 mit Elisa geb. Lehmann",null,null,null,null,null,null,null,null,null,null,null,null,null,null,null,null,null,null,null,null,"Verbleib unbekannt"]
[132,"Maier Israel","Herzfeld","Herzfeld ","07.05.1864","Höchst","Odenwald","Hessen",null,null,null,null,null,null,null,"Aschaffenburg",null,"Weberegasse",2,null,null,null,null,null,null,null,null,null,"1942-02-05","X",null,"Verbleib unbekannt","Online Synagoge und Bundesarchiv Gedenkbuch","Moritz Leib","2021-11-02"]
[133,"Johanna ","Levi","Herzfeld","19.12.1890","Höchst","Odenwald","Hessen","Ehemann",null,"verheiratet mit Kaufmann Joseph Levi nach Mittelsinn am 11.08.1920",null,null,null,null,"Aschaffenburg",null,null,null,null,null,null,null,null,null,null,null,null,null,null,null,"Verbleib unbekannt","Online Synagoge und Bundesarchiv Gedenkbuch","Moritz Leib","2021-11-02"]
[134,"Mathilde","Lichtenstein","Herzfeld","09.06.1893","Höchst","Odenwald","Hessen",null,null,null,"Höchst",null,null,null,"Aschaffenburg",null,null,null,null,null,null,null,null,null,null,null,null,null,null,null,"Verbleib unbekannt","Bundesarchiv Gedenkbuch und Online Synagoge","Moritz Leib","2021-11-02"]
[135,"Wilhelmine","Herzfeld",null,"1902-05-13","Höchst","Odenwald","Hessen",null,null,"verheiratet nach Esslingen 1938",null,null,null,null,null,null,null,null,null,null,null,null,null,null,null,null,null,null,null,null,"lebte in Philadelphia; USA"]
[136,"Elsa","Herzfeld",null,"1903-12-08","Höchst","Odenwald","Hessen ",null,null,null,null,null,null,null,null,null,null,null,null,null,null,null,null,null,null,null,null,null,null,null,"lebte in Philadelphia; USA"]
[137,"Moritz","Herzfeld",null,"01.09.1877","Höchst","Odenwald","Hessen ",null,null,null,null,null,null,null,null,null,null,null,null,null,null,null,null,null,null,null,null,null,null,null,"Verbleib unbekannt"]
[138,"Sigmund","Herzfeld",null,"02.09.1879","Höchst","Odenwald","Hessen",null,null,null,null,null,null,null,null,null,null,null,null,null,null,null,null,null,null,null,null,null,null,null,"Verbleib unbekannt"]
[139,"Elsa","Herzfeld",null,"03.02.1882","Höchst","Odenwald","Hessen","Schwester",140,"Frieda Herzfeld (Zwillinge)",null,null,null,null,null,null,null,null,null,null,null,null,null,null,null,null,null,null,null,null,"Verbleib unbekannt"]
[140,"Frieda","Herzfeld",null,"03.02.1882","Höchst","Odenwald","Hessen","Schwester",139,"Elsa Herzfeld (Zwillinge)",null,null,null,null,null,null,null,null,null,null,null,null,null,null,null,null,null,null,null,null,"Verbleib unbekannt"]
[141,"Güdele","Hirsch ",null,"27.08.1870","Höchst","Odenwald","Hessen",null,null,null,null,null,null,null,null,null,null,null,null,null,null,null,null,null,null,null,null,null,null,null,"Verbleib unbekannt"]
[142,"Helmut","Kahn","Kahn","1920-02-13","Mümling-Grumbach","Odenwald","Hessen",null,null,null,null,null,null,null,null,null,null,null,"X",13610,null,null,null,null,null,null,null,null,null,null,"nach Frankfurt a. M. verzogen; Verbleib unbekannt","Bundesarchiv Gedenkbuch","Moritz Leib","2021-11-02"]
[143,"Hermann","Kahn",null,"1906-12-29",null,null,null,null,null,null,null,null,null,null,null,null,null,null,null,null,null,null,null,null,null,null,null,"1963-04-07",null,null,"starb in Hot Springs; Arkansas; USA"]
[144,"Marx","Kahn",null,"1912-12-14",null,null,null,null,null,null,null,null,null,null,null,null,null,null,null,null,null,null,null,null,null,null,null,"1977-10-03",null,null,"starb in New York; USA"]
[145,"Flora","Kahn",null,"04.03.1898","Höchst","Odenwald","Hessen",null,null,null,null,null,null,null,null,null,null,null,"X",8993,null,null,null,null,null,null,null,null,null,null,"nach Groß-Biberau verzogen; starb in New York"]
[146,"Siegfried","Kahn",null,"1913-04-01","Höchst","Odenwald","Hessen",null,null,null,null,null,null,null,null,null,null,null,null,null,null,null,null,null,null,null,null,null,null,null,"Als US-Soldat war er 1945 in Höchst, verstarb während der Rückreise auf dem Schiff"]
[147,"Dina","Kahn",null,"17.05.1883","Höchst","Odenwald","Hessen",null,null,"nach Schlierbach verheiratet",null,null,null,null,null,null,null,null,"X",null,null,null,null,null,null,null,null,null,null,null,"starb in New York; USA"]
[148,"Klara ","Wolf","Kahn","19.11.1885","Höchst","Odenwald","Hessen","Ehemann",null,"verheiratet mit Glasmeister Adolf Wolf; Witwer (jüd.)","Bingen","Schmittstraße",66,null,null,null,null,null,null,null,null,null,null,null,null,null,null,null,null,null,"Verbleib unbekannt","Online Synagoge ","Moritz Leib","2021-11-02"]
[149,"Hannchen","Kahn",null,"08.03.1878","Hetschbach","Odenwald","Hessen","Ehemann",null,"verheiratet mit Sigmund Rosenthal am 22.05.1904 nach Langenhain",null,null,null,null,null,null,null,null,null,null,null,null,null,null,null,null,null,null,null,null,"Verbleib unbekannt"]
[150,"Rosa","Kahn",null,"07.02.1888","Hetschbach","Odenwald","Hessen","Ehemann",null,"am 20.12.1904 mit dem Bäcker Sachy Steiermannn nach Biblis verheiratet",null,null,null,null,null,null,null,null,null,null,null,null,null,null,null,null,null,null,null,null,"Verbleib unbekannt"]
[151,"Hermann","Kahn",null,"03.08.1892","Höchst","Odenwald","Hessen",null,null,"verheiratet nach Groß-Umstadt",null,null,null,null,null,null,null,null,null,null,null,null,null,null,null,null,null,null,null,null,"Emigration nach Palästina; Religionslehrer in Jerusalem; verstorben"]
[152,"Faist","Krämer",null,"02.06.1865","Höchst","Odenwald","Hessen",null,null,null,null,null,null,null,null,null,null,null,null,null,null,null,null,null,null,null,null,null,null,null,"Emigration in die USA"]
[153,"Marx","Krämer",null,"12.08.1867","Höchst","Odenwald","Hessen",null,null,null,null,null,null,null,null,null,null,null,null,null,null,null,null,null,null,null,null,null,null,null,"Emigration in die USA"]
[154,"Walther","Krämer",null,"1901-02-11","Höchst","Odenwald","Hessen",null,null,null,null,null,null,null,null,null,null,null,null,null,null,null,null,null,null,null,null,"1982-09-01",null,null,"verstarb in den USA"]
[155,"Herbert","Krämer",null,"1904-03-07","Höchst","Odenwald","Hessen",null,null,null,null,null,null,null,null,null,null,null,null,null,null,null,"X","1933-05-10",null,null,null,"1905-05-15",null,null,"nach Düsseldorf abgemeldet; Verstarb in den USA"]
[156,"Friedrich","Krämer",null,"1911-06-28","Höchst","Odenwald","Hessen",null,null,null,null,null,null,null,null,null,null,null,null,null,null,null,"X","1934-09-29",null,null,null,"1905-06-08",null,null,"in die USA abgemeldet, verstarb in New Jersey"]
[157,"Elisa","Krämer",null,"05.07.1872","Höchst","Odenwald","Hessen",null,null,null,null,null,null,null,null,null,null,null,null,null,null,null,null,null,null,null,null,null,null,null,"Verbleib unbekannt"]
[158,"Karoline ","Krämer",null,"14.07.1874","Höchst","Odenwald","Hessen",null,null,null,null,null,null,null,null,null,null,null,null,null,null,null,null,null,null,null,null,null,null,null,"Verbleib unbekannt"]
[159,"Helene","Krämer",null,"01.07.1881","Höchst","Odenwald","Hessen",null,null,null,"Höchst ",null,null,null,"Offenbach am Main",null,null,null,null,null,null,null,null,null,null,null,null,"1905-06-09",null,null,"verstarb in New York; USA","Bundesarchiv Gedenkbuch","Moritz Leib","2021-11-02"]
[160,"Malche","Krämer",null,"03.04.1879","Höchst","Odenwald","Hessen",null,null,null,null,null,null,null,null,null,null,null,null,null,null,null,null,null,null,null,null,null,null,null,"in die USA ausgewandert"]
[161,"Marx","Löb ",null,"21.03.1874","Höchst","Odenwald","Hessen"]
[162,"Salomon","Löb ",null,"15.04.1880","Höchst","Odenwald","Hessen "]
[163,"Hermine","Mai",null,"17.12.1890","Höchst","Odenwald","Hessen",null,null,null,null,null,null,null,null,null,null,null,null,null,null,null,null,null,null,null,null,null,null,null,"in die USA ausgewandert"]
[164,"Moritz","Mai",null,"11.01.1885","Höchst","Odenwald","Hessen",null,null,null,null,null,null,null,null,null,null,null,null,null,null,null,null,null,null,null,null,null,null,null,"Verbleib unbekannt "]
[165,"Fanni","Mai",null,"29.01.1867","Höchst","Odenwald","Hessen ",null,null,null,null,null,null,null,null,null,null,null,null,null,null,null,null,null,null,null,null,null,null,null,"Verbleib unbekannt "]
[166,"Isaak","Mai",null,"05.10.1869","Höchst","Odenwald","Hessen",null,null,null,null,null,null,null,null,null,null,null,null,null,null,null,null,null,null,null,null,null,null,null,"Verbleib unbekannt "]
[167,"Hirsch","Mai",null,"28.12.1871","Höchst","Odenwald","Hessen",null,null,null,null,null,null,null,null,null,null,null,null,null,null,null,null,null,null,null,null,null,null,null,"Verbleib unbekannt "]
[168,"Moses","Mai",null,"05.01.1874","Höchst","Odenwald","Hessen",null,null,null,null,null,null,null,null,null,null,null,null,null,null,null,null,null,null,null,null,null,null,null,"nach Nashville emigriert und dort verstorben "]
[169,"Regina","Mai",null,"20.10.1877","Höchst ","Odenwald","Hessen",null,null,null,null,null,null,null,null,null,null,null,null,null,null,null,null,null,null,null,null,null,null,null,"Verbleib unbekannt "]
[170,"Eva","Strauss","Morgenthau","17.12.1873","Höchst","Odenwald","Hessen","Ehefrau",null,"Mit Metzger Raphael Straus am 29.05.1904","Frankfurt am Main",null,null,null,null,null,null,null,null,null,null,null,null,null,null,null,null,null,null,null,"nach Hörstein/Alzenau, Verbleib unbekannt","Bundesarchiv Gedenkbuch und Online Synagoge","Moritz Leib","2021-11-03"]
[171,"Mayer","Morgenthau",null,"12.11.1878","Höchst","Odenwald","Hessen",null,null,null,null,null,null,null,null,null,null,null,null,null,null,null,null,null,null,null,null,null,null,null,"Verbleib unbekannt "]
[172,"Bina","Muhr",null,"03.04.1886","Höchst","Odenwald","Hessen",null,null,null,null,null,null,null,null,null,null,null,null,null,null,null,null,null,null,null,null,null,null,null,"Verbleib unbekannt "]
[173,"Hedwig Sara","Muhr",null,"04.11.1887","Höchst","Odenwald","Hessen",null,null,null,"Frankfurt am Main",null,null,null,null,null,null,null,null,null,null,null,null,"1938-11-24",null,null,"Frankfurt am Main",null,null,null,"Verbleib unbekannt ","Bundesarchiv Gedenkbuch","Moritz Leib","2021-11-02"]
[174,"Jettchen ","Muhr",null,"17.11.1859","Höchst","Odenwald","Hessen",null,null,null,null,null,null,null,null,null,null,null,null,null,null,null,null,null,null,null,null,null,null,null,"Verbleib unbekannt "]
[175,"Gustav ","Muhr",null,"03.03.1859","Höchst","Odenwald","Hessen",null,null,null,null,null,null,null,null,null,null,null,null,null,null,null,null,null,null,null,null,null,null,null,"Verbleib unbekannt "]
[176,"Leopold","Oppenheimer",null,"18.03.1867","Höchst ","Odenwald","Hessen",null,null,null,null,null,null,null,null,null,null,null,null,null,null,null,null,null,null,null,null,null,null,null,"Verbleib unbekannt "]
[177,"Adelheid","Oppenheimer",null,"28.07.1869","Höchst","Odenwald","Hessen",null,null,null,null,null,null,null,null,null,null,null,null,null,null,null,null,null,null,null,null,null,null,null,"Verbleib unbekannt "]
[178,"Trinche","Oppenheimer",null,"24.04.1871","Höchst","Odenwald","Hessen",null,null,null,null,null,null,null,null,null,null,null,null,null,null,null,null,null,null,null,null,null,null,null,"Verbleib unbekannt "]
[179,"Ludwig","Oppenheimer",null,"01.04.1872","Höchst","Odenwald","Hessen",null,null,null,null,null,null,null,null,null,null,null,null,null,null,null,null,null,null,null,null,null,null,null,"Emigriert in die USA "]
[180,"Mathilde","Liebmann","Oppenheimer","05.05.1875","Höchst","Odenwald","Hessen","Ehefrau",null,"verh. mit Fellhändler Salomon Liebmann","Höchst",null,null,null,"Aschaffenburg",null,"Friedrichstraße",7,null,null,null,null,null,null,null,null,null,null,null,null,"Verbleib unbekannt ","Bundesarchiv Gedenkbuch","Moritz Leib","2021-11-02"]
[181,"Malche","Oppenheimer",null,"28.08.1878","Höchst","Odenwald","Hessen",null,null,null,null,null,null,null,null,null,null,null,null,null,null,null,null,null,null,null,null,null,null,null,"Verbleib unbekannt "]
[182,"Leopold","Oppenheimer",null,"02.03.1869","Höchst","Odenwald","Hessen",null,null,null,null,null,null,null,null,null,null,null,null,null,null,null,null,null,null,null,null,null,null,null,"Verbleib unbekannt "]
[183,"Marx","Oppenheimer",null,"19.02.1873","Höchst","Odenwald","Hessen",null,null,null,null,null,null,null,null,null,null,null,null,null,null,null,null,null,null,null,null,null,null,null,"Verbleib unbekannt "]
[184,"Regina","Oppenheimer","Mayer","26.12.1856",null,null,null,null,null,null,null,null,null,null,null,null,null,null,null,null,null,null,"X","1938-12-10",null,null,null,null,null,null,"Verbleib unbekannt "]
[185,"Anselm","Oppenheimer",null,"1905-02-08",null,null,null,null,null,null,null,null,null,null,null,null,null,null,"X",1894,null,null,null,null,null,null,null,null,null,null,"Verbleib unbekannt "]
[186,"Karoline ","Oppenheimer","Fahrmann",null,null,null,null,null,null,null,null,null,null,null,null,null,null,null,"X",1894,null,null,null,null,null,null,null,null,null,null,"Verbleib unbekannt "]
[187,"Leopold","Oppenheimer",null,"19.03.1893","Höchst","Odenwald","Hessen",null,null,null,null,null,null,null,null,null,null,null,null,null,null,null,null,null,null,null,null,null,null,null,"Verbleib unbekannt "]
[188,"Ferdinand","Oppenheimer",null,"11.09.1894","Höchst","Odenwald","Hessen",null,null,null,null,null,null,null,null,null,null,null,null,null,null,null,null,null,null,null,null,null,null,null,"Verbleib unbekannt "]
[189,"Siegfried","Oppenheimer",null,"1900-01-05","Höchst","Odenwald","Hessen",null,null,null,null,null,null,null,null,null,null,null,null,null,null,null,null,null,null,null,null,null,null,null,"lebte in Großbritannien"]
[190,"Arthur","Oppenheimer",null,"1902-10-02","Höchst","Odenwald","Hessen",null,null,null,null,null,null,null,null,null,null,null,null,null,null,null,null,null,null,null,null,"xx.02.1966","X",null,"1921 ausgewandert in die USA"]
[191,"Ludwig","Oppenheimer",null,"20.09.1898","Höchst","Odenwald","Hessen",null,null,null,"Höchst",null,null,null,null,null,null,null,null,null,null,null,null,null,null,"1905-04-25","Ausschwitz",null,null,null,"Vom Amtsgericht Berlin-Charlotten-Burg für tot erklärt","Online Synagoge","Moritz Leib","2021-11-02"]
[192,"Adolf","Rapp",null,"24.11.1882 ","Höchst","Odenwald","Hessen",null,null,null,null,null,null,null,null,null,null,null,null,null,null,null,null,null,null,null,null,null,null,null,"Verbleib unbekannt ","Bundesarchiv Gedenkbuch","Moritz Leib","2021-11-02"]
[193,"Jetta","Siegel",null,"06.06.1869",null,null,null,null,null,null,null,null,null,null,null,null,null,null,null,null,null,null,null,null,null,null,null,null,null,null,"Verbleib unbekannt "]
[194,"Ramche","Siegel",null,"26.01.1871",null,null,null,null,null,null,null,null,null,null,null,null,null,null,null,null,null,null,null,null,null,null,null,null,null,null,"Verbleib unbekannt "]
[195,"Rikche","Siegel",null,"27.04.1873",null,null,null,null,null,null,null,null,null,null,null,null,null,null,null,null,null,null,null,null,null,null,null,null,null,null,"Verbleib unbekannt "]
[196,"Jakob","Siegel",null,"13.05.1875",null,null,null,null,null,null,null,null,null,null,null,null,null,null,null,null,null,null,null,null,null,null,null,null,null,null,"Verbleib unbekannt "]
[197,"Siegfried ","Siegel",null,"02.11.1872","Höchst","Odenwald","Hessen",null,null,null,null,null,null,null,null,null,null,null,null,null,null,null,null,null,null,null,null,null,null,null,"Verbleib unbekannt "]
[198,"Fanni","Siegel",null,"28.02.1874","Höchst","Odenwald","Hessen","Ehemann",null,"verh. mit Kaufmann Simon Morgenstern",null,null,null,64345,"Dieburg","Georgenhausen",null,null,null,null,null,null,null,null,null,null,null,null,null,null,"Verbleib unbekannt "]
[199,"Jakob","Siegel",null,"13.05.1875","Höchst","Odenwald","Hessen",null,null,null,null,null,null,null,null,null,null,null,null,null,null,null,null,null,null,null,null,null,null,null,"Verbleib unbekannt "]
[200,"Jettchen Sara","Stein",null,"01.08.1889","Höchst","Odenwald","Hessen",null,null,null,"Höchst",null,null,null,"Frankfurt am Main",null,null,null,null,null,null,null,null,null,null,null,null,null,null,null,"Verbleib unbekannt ","Bundesarchiv Gedenkbuch","Moritz Leib","2021-11-02"]
[201,"Berthold","Stein",null,"15.09.1894",null,null,null,null,null,null,null,null,null,null,null,null,null,null,null,null,null,null,null,null,null,null,null,null,null,null,"Verbleib unbekannt "]
[202,"Jettchen Sara ","Frank Trier",null,"19.09.1884","Höchst","Odenwald","Hessen","Elternteil",null,"Hannchen","Michelstadt",null,null,null,null,null,null,null,null,null,null,null,null,null,null,null,null,null,null,null,"Verbleib unbekannt ","Bundesarchiv Gedenkbuch","Moritz Leib","2021-11-02"]
["203","Fred","Haas","Fred Haas",null,"Michelstadt","Odenwald","Hessen","Sohn",null,"USA",null,null,null,null,null,null,null,null,{"$f":"IF(U206=\"\",\"\",\"X\")","v":""},null,{"$f":"IF(W206=\"\",\"\",\"X\")","v":""},null,{"$f":"IF(Y206=\"\",\"\",\"X\")","v":""},null,null,null,null,null,null,null,null,"Online Synagoge","Moritz Leib","2021-11-02"]
[204,"Rosa","Steiermann","Kohen ","07.02.1888","Höchst ","Odenwald","Hessen",null,null,null,"Biblis",null,null,null,"Frankfurt am Main",null,null,null,null,null,null,null,null,null,null,null,null,null,null,null,null,"Online Synagoge","Moritz Leib","2021-11-02"]
[205,"Ludwig","Oppenheimer","Oppenheimer",1898,"Höchst","Odenwald","Hessen",null,null,null,"Höchst",null,null,null,null,null,null,null,null,null,null,null,null,null,null,null,null,null,null,null,null,"Bundesarchiv Gedenkbuch","Moritz Leib","2021-11-02"]

{"sheet":"Test","index":3,"n_rows":12,"n_cols":39,"rows_kept":12,"cut":false,"hidden":true,"merged":[[0,37,0,38],[1,0,1,1],[1,8,1,10],[2,0,3,0],[2,1,3,1],[2,2,3,2],[2,3,2,7],[2,10,3,10],[2,11,2,13],[2,14,2,18],[0,0,0,1],[0,3,0,5],[0,8,0,10],[0,11,0,13],[0,15,0,16],[0,35,0,36],[2,32,3,32],[2,33,2,34],[2,35,2,36],[2,37,2,38],[2,19,2,20],[2,21,2,22],[2,23,2,24],[2,25,2,27],[2,28,2,30],[2,31,3,31]]}
["Neue Zeile einfügen",null,"Spalte sortieren","Datensatz - Eingabe durch",null,null,null,null,"Auswahl Verwandt-schaftsverhältnis",null,null,null,null,null,null,"Ortsteil auswählen",null,null,null,null,null,null,null,null,null,null,null,null,null,null,null,null,"Quelle auswählen",null,null,"Name Duplikat auswählen",null,"Endgültiger Check durch:"]
["Alle Zeilen anzeigen",null,"Wechsel zu Seite"]
["LNr","Vorname","Name","Geburts-",null,null,null,null,"Verwandt-schafts-","mit","Erläuterung","Wohn-Adresse alt",null,null,"Wohn-Adresse neu",null,null,null,null,"verzogen",null,"geflohen",null,"abgemeldet",null,"Deportation",null,null,"Todesdatum",null,null,"Bemerkungen","Quelle","Eingabe durch",null,"Duplizierung des Datensatzes durch weiteren Eingeber",null,"Endgültiger Daten-Check "]
[null,null,null,"Name","Datum","Ort","Kreis","Land","Verhältnis","LNr Spalte A",null,"Wohnort","Straße","Haus-Nr.","PLZ","Wohnort","Kerngemeinde / Ortsteil","Straße","Haus-Nr.","X","Datum","X","Datum","X","Datum","ab","am","nach","Datum","gesi-chert","ver-mutet",null,null,"Name","Datum","Name","Datum","Name","Datum"]
["Bsp.","Hanna","Beispiel","Hess","1900-01-01","X-Dorf","Y-Kreis","Hessen-Naussau","Ehemann",6,"ABC","Höchst","Beispielstraße",3,64739,"Höchst","Hassenroth","Neue Beispielstraße",1,{"$f":"IF(U5=\"\",\"\",\"X\")","v":"X"},"1940-04-15",{"$f":"IF(W5=\"\",\"\",\"X\")","v":"X"},"1941-05-01",{"$f":"IF(Y5=\"\",\"\",\"X\")","v":"X"},"1941-12-31","Darmstadt","1942-09-30","Treblinka","1944-04-01"," ","X",null,"Bundesarchiv Gedenkbuch","Monika Giesen-Wiese","2020-05-21","Monika Giesen-Wiese","2020-05-21","Gemeinde-Archivar","2020-05-18"]
[0]
["001","X","A","F","1921-03-15",null,null,null,null,null,null,null,null,null,null,null,null,null,null,{"$f":"IF(U7=\"\",\"\",\"X\")","v":""},null,{"$f":"IF(W7=\"\",\"\",\"X\")","v":""},null,{"$f":"IF(Y7=\"\",\"\",\"X\")","v":""},null,null,null,null,null,null,null,null,null,"Detlev Röttger","2020-05-19","Gemeinde-Archivar","2020-05-19"]
["001a","Y","C","D","1919-04-17",null,null,null,null,null,null,null,null,null,null,null,null,null,null,"",null,"",null,"",null,null,null,null,"1941-02-28",null,null,"1941/02",null,"EGS (Schüler)","2020-05-21","Hans Hofferberth","2020-05-21","Heimat- u. GV (H. Lammer)","2020-05-21"]
["001b","Y","C","D","1919-04-17",null,null,null,null,null,null,null,null,null,null,null,null,null,null,"",null,"",null,"",null,null,null,null,"1941-02-28",null,null,"1941/02",null,"EGS (Schüler)","2020-05-21","EGS (Schüler)","2020-05-21","Heimat- u. GV (H. Lammer)","2020-05-21"]
["001c","Y","C","D","1919-04-17",null,null,null,null,null,null,null,null,null,null,null,null,null,null,"",null,"",null,"",null,null,null,null,"1941-02-28",null,null,"1941/02",null,"EGS (Schüler)","2020-05-21","Gemeinde-Archivar","2020-06-01","Heimat- u. GV (H. Lammer)","2020-05-21"]
["002","Z","B","E","1920-02-18",null,null,null,null,null,null,null,null,null,null,null,null,null,null,"",null,"",null,"",null,null,null,null,null,null,null,null,null,null,null,"EGS (M. Trumpheller)","2020-06-01"]
["002a","Z","B","E","1920-02-18",null,null,null,null,null,null,null,null,null,null,null,null,null,null,"",null,"",null,"",null,null,null,null,null,null,null,null,null,null,null,null,"2020-06-01"]

{"sheet":"Basis","index":4,"n_rows":40,"n_cols":23,"rows_kept":40,"cut":false,"hidden":true,"merged":[[0,12,0,18]]}
["Seite","Eingabe","Verw.-Verh.","Ortsteil","Quelle","Duplikat","Datencheck","Sp-Nr.","Sp-BSt","Spalten-Name","Sp-Breite","ID","SORT",null,null,null,null,null,null,null,"alph. aufst.=1","num. aufst.=2","Datum aufst.=3"]
["Name","EGS (Schüler)","Ehefrau","Kerngemeinde","Bundesarchiv Gedenkbuch","EGS (Schüler)","Gemeinde-Archivar",1,{"$f":"LEFT(ADDRESS(1,H2,4),1)","v":"A"},"LNr",5,1,1,2,1,2,1,2,1,2,"alph. abst.=4","num. abst.=5","Datum abst.=6"]
["Wohnort","Giesen-Wiese Monika","Ehemann","Annelsbach","Archiv Darmstadt","EGS (M. Trumpheller)","EGS (M. Trumpheller)",2,{"$f":"LEFT(ADDRESS(1,H3,4),1)","v":"B"},"Vorname",11,2,2,1,3,1,12,1,13,1]
["Deportation","Hofferberth Hans","Sohn","Forstel","Archiv Erbach","Gemeinde-Archivar","Heimat- u. GV (H. Lammer)",3,"C","Name",23,3,3,1,2,1,12,1,13,1]
["Quelle","Röttger Detlev","Tochter","Hassenroth","Archiv Höchst","Giesen-Wiese Monika",null,4,"D","Geburts-Name",{"$f":"K$4","v":23},{"$f":"L$4","v":3},4,1,3,1,12,1,13,1]
[null,"Ruzicka Hildegard","Mutter","Hetschbach","Archiv Wiesbaden","Hofferberth Hans",null,5,"E","Geburts-Datum",10,4,5,1,3,1,2,1,4,1]
[null,"Thierolf Marlene","Vater","Hummetroth","Heimat- und Geschichtsverein","Röttger Detlev",null,6,"F","Geburts-Ort",15,5,6,1,3,1,2,1,4,1]
[null,null,"Großmutter","Mlg.-Grumbach","Internet Synagoge","Ruzicka Hildegard",null,7,"G","Geburts-Kreis",15,6,7,1,6,1,3,1,2,1]
[null,null,"Großvater","Pfirschbach",null,"Thierolf Marlene",null,8,"H","Geburts-Land",15,7,8,1,7,1,12,1,3,1]
[null,null,"Cousine",null,null,null,null,9,"I","Verwandtschafts-Verhältnis",11,8,9,1,3,1,2,1,16,1]
[null,null,"Cousin",null,null,null,null,10,"J","VerwVH mit LNr Spalte A",6,9,10,2,1,2,1,2,1,2]
[null,null,null,null,null,null,null,11,"K","VerwVH Erläuterung",22,10,11,1,9,1,3,1,2,1]
[null,null,null,null,null,null,null,12,"L","Wohnort alt",{"$f":"K$7","v":15},{"$f":"L$7","v":5},12,1,3,1,2,1,4,1]
[null,null,null,null,null,null,null,13,"M","Straße alt",20,11,13,1,16,1,3,1,2,1]
[null,null,null,null,null,null,null,14,"N","Haus-Nr. alt",6,12,14,2,12,1,3,1,2,1]
[null,null,null,null,null,null,null,15,"O","PLZ neu",6,{"$f":"L$15","v":12},15,2,16,1,3,1,1,1]
[null,null,null,null,null,null,null,16,"P","Wohnort neu",{"$f":"K$7","v":15},{"$f":"L$7","v":5},16,1,17,1,3,1,2,1]
[null,null,null,null,null,null,null,17,"Q","Kerngemeinde / Ortsteil neu",{"$f":"K$12","v":22},{"$f":"L$12","v":10},17,1,16,1,3,1,2,1]
[null,null,null,null,null,null,null,18,"R","Straße neu",{"$f":"K$14","v":20},{"$f":"L$14","v":11},18,1,16,1,3,1,2,1]
[null,null,null,null,null,null,null,19,"S","Haus-Nr. neu",{"$f":"K$15","v":6},{"$f":"L$15","v":12},19,2,18,1,16,1,3,1]
[null,null,null,null,null,null,null,20,"T","verzogen (X)",5,13,20,1,16,1,3,1,2,1]
[null,null,null,null,null,null,null,21,"U","Datum verzogen",{"$f":"K$6","v":10},{"$f":"L$6","v":4},21,3,16,1,3,1,2,1]
[null,null,null,null,null,null,null,22,"V","geflohen (X)",{"$f":"K$21","v":5},{"$f":"L$21","v":13},22,1,16,1,3,1,2,1]
[null,null,null,null,null,null,null,23,"W","Datum geflohen",{"$f":"K$6","v":10},{"$f":"L$6","v":4},23,3,16,1,3,1,2,1]
[null,null,null,null,null,null,null,24,"X","abgemeldet (X)",{"$f":"K$21","v":5},{"$f":"L$21","v":13},24,1,25,3,3,1,2,1]
[null,null,null,null,null,null,null,25,"Y","Datum abgemeldet",{"$f":"K$6","v":10},{"$f":"L$6","v":4},25,3,16,1,3,1,2,1]
[null,null,null,null,null,null,null,26,"Z","Deportation ab",{"$f":"K$7","v":15},{"$f":"L$7","v":5},26,1,27,3,28,1,3,1]
[null,null,null,null,null,null,null,27,{"$f":"LEFT(ADDRESS(1,H28,4),2)","v":"AA"},"Datum am (Deportation)",{"$f":"K$6","v":10},{"$f":"L$6","v":4},27,3,26,1,28,1,3,1]
[null,null,null,null,null,null,null,28,{"$f":"LEFT(ADDRESS(1,H29,4),2)","v":"AB"},"Deportation nach",{"$f":"K$7","v":15},{"$f":"L$7","v":5},28,1,29,3,26,1,3,1]
[null,null,null,null,null,null,null,29,"AC","Todes-Datum",{"$f":"K$6","v":10},{"$f":"L$6","v":4},29,3,26,3,28,3,3,1]
[null,null,null,null,null,null,null,30,"AD","gesichert (Todes-Datum)",{"$f":"K$21","v":5},{"$f":"L$21","v":13},30,1,16,1,3,1,2,1]
[null,null,null,null,null,null,null,31,"AE","vermutet (Todes-Datum)",{"$f":"K$21","v":5},{"$f":"L$21","v":13},31,1,16,1,3,1,2,1]
[null,null,null,null,null,null,null,32,"AF","Bemerkungen (Todes-Datum)",{"$f":"K$12","v":22},{"$f":"L$12","v":10},32,1,16,1,3,1,2,1]
[null,null,null,null,null,null,null,33,"AG","Quelle (Personenangaben)",30,14,33,1,34,1,3,1,2,1]
[null,null,null,null,null,null,null,34,"AH","Eingabe durch (Name)",{"$f":"K$4","v":23},{"$f":"L$4","v":3},34,1,16,1,3,1,2,1]
[null,null,null,null,null,null,null,35,"AI","Datum (Eingabe)",{"$f":"K$6","v":10},{"$f":"L$6","v":4},35,3,34,1,3,1,2,1]
[null,null,null,null,null,null,null,36,"AJ","Duplizierung des Datensatzes durch weiteren Eingeber (Name)",{"$f":"K$4","v":23},{"$f":"L$4","v":3},36,1,16,1,3,1,2,1]
[null,null,null,null,null,null,null,37,"AK","Datum (Datensatz-Duplizierung)",{"$f":"K$6","v":10},{"$f":"L$6","v":4},37,3,36,1,3,1,2,1]
[null,null,null,null,null,null,null,38,"AL","Endgültiger Daten-Check (Name)",{"$f":"K$4","v":23},{"$f":"L$4","v":3},38,1,16,1,3,1,2,1]
[null,null,null,null,null,null,null,39,"AM","Datum (Endgültiger Daten-Check)",{"$f":"K$6","v":10},{"$f":"L$6","v":4},39,3,38,1,3,1,2,1]

{"sheet":"Daten_Orig","index":5,"n_rows":3,"n_cols":21,"rows_kept":3,"cut":false,"hidden":true,"merged":[]}
[]
["Vorname","Name","Geburtsname","Geburtsdatum","Geburtsort","Verwandtschaft","Wohnort","Straße","Hausnummer","verzogen","geflohen","abgemeldet","Deportation ab","am","nach","Todesdatum","gesichert","vermutet","Bemerkungen","Quelle","eingetragen durch"]
["Dora","Krämer","Hess",{"$error":"#N/A"},"Birstein / Gelnhausen / Hessen-Nassau",null,"Höchst i. Odenwald",null,null,null,null,null,"Darmstadt","1942-09-30","Treblinka",null,null,"vermutl"]